{"text_format":"1","workbook":"xlsx","n_sheets":1,"sheets":["Taul1"],"not_rendered":{"charts":0,"images":0,"macros":1,"external_links":0,"defined_names":1,"comments":0,"pivot_tables":0},"unopened":[],"bounds":{"document_bytes":16777216,"sheet_cells":100000,"rows_first":2000,"rows_last":500,"rows_between":2000,"halvings":0,"cell_chars":16384,"cell_head_chars":4096},"cells_cut":0,"cells_raw":0,"read":"whole","date_system":"1900"}

{"sheet":"Taul1","index":0,"n_rows":93,"n_cols":94,"rows_kept":93,"cut":false,"hidden":false,"merged":[[74,0,74,14],[75,0,75,14],[76,0,76,14],[77,0,77,14],[46,1,46,11],[47,1,47,11],[48,1,48,11],[49,1,49,11],[50,1,50,11],[51,1,51,11],[52,1,52,11],[53,1,53,11],[54,1,54,11],[55,1,55,11],[56,1,56,11],[57,1,57,11],[3,10,3,11],[0,0,0,12],[2,2,2,3],[3,37,3,38],[73,0,73,14],[58,1,58,11],[59,1,59,11],[60,1,60,11],[61,1,61,11],[62,1,62,11],[63,1,63,11],[64,1,64,11],[44,13,44,32],[45,5,45,11],[1,13,2,32]]}
["Tällä excelillä saat tehtyä 19 satunnaista prosenttilaskua\nHarmaalla pohjalla olevia kohtia voi muuttaa, jolloin lomake arpoo uudet laskut.\nRukseilla voi valita arvottavat tehtävätyypit. Harmaita kohtia \"aukeaa\" tarpeen mukaan.",null,null,null,null,null,null,null,null,null,null,null,null,"Laskunro","Prosentti","Perusarvo","Alennus%","Ale2 %","Nousu%","Nousu2 %","Vertailu%","Pros.yks.1","Pros.yks.2","Palkka","Tuloraja","Vero%","Lisää vero%","Korko%","Vuosia","Pääoma","Kuukausia",null,"Promille"]
["Versio",null,"4.1b-kaksisivuinen-makrolla",null,null,null,null,null,null,null,null,null,null,"Valitse rukseilla haluamasi laskutyypit.\nPaina sen jälkeen Ctrl + K   ja muokkaa alla näkyviä lukuja tarpeen mukaan."]
["Julkaistu",null,"2016-09-14"]
[null,null,null,null,null,null,null,null,"Sivu 1","Sivu 2","Laskutyypit",null,null,null,null,null,null,null,null,null,null,null,null,null,null,null,null,null,null,null,null,null,null,null,null,null,null,"Tyyppien määrä",null,"Rivinumerot","Muokattu tehtävänro"]
[null,"Prosentti",null,"Perusarvo",null,"Promille",null,"1.","x",null,{"$f":"BE47","v":"Kuinka monta prosenttia luku 27 on luvusta 97?"},null,null,null,null,null,null,null,null,null,null,null,null,null,null,null,null,null,null,null,null,null,null,null,null,null,null,{"$f":"IF(OR(ISBLANK(I5),I5=0),0,1)","v":1},{"$f":"IF(OR(ISBLANK(J5),J5=0),0,1)","v":0},1,{"$f":"RANK(AN5,AL$5:AL$42,1)","v":1},{"$f":"RANK(AN5,AM$5:AM$42,1)","v":6}]
[null,"Min","Max","Min","Max","Min","Max","2.","x",null,{"$f":"BF47","v":"97 euron tuotteesta saa 54 € alennuksen. Montako prosenttia alennus on?"},null,null,null,null,null,null,null,null,null,null,null,null,null,null,null,null,null,null,null,null,null,null,null,null,null,null,{"$f":"IF(OR(ISBLANK(I6),I6=0),AL5,AL5+1)","v":2},{"$f":"IF(OR(ISBLANK(J6),J6=0),AM5,AM5+1)","v":0},2,2,7,"promille",{"$f":"COUNTA(I41:J42)","v":0}]
[{"$f":"$I$4","v":"Sivu 1"},1,100,1,200,1,100,"3.","x",null,{"$f":"BG47","v":"97 euron tuotteen uusi hinta on 43 €. Montako prosenttia alennus on?"},null,null,null,null,null,null,null,null,null,null,null,null,null,null,null,null,null,null,null,null,null,null,null,null,null,null,3,0,3,3,8,"korko",{"$f":"COUNTA(I31:J40)","v":0}]
[{"$f":"$J$4","v":"Sivu 2"},1,100,1,200,1,200,"4.","x",null,{"$f":"BH47","v":"97 euron tuotteen hinta nousee 2 €. Montako prosenttia hinta nousee?"},null,null,null,null,null,null,null,null,null,null,null,null,null,null,null,null,null,null,null,null,null,null,null,null,null,null,4,0,4,4,9,"verotus",{"$f":"AL26-AL22+AM26-AM22","v":0}]
[null,null,null,null,null,null,null,"5.","x",null,{"$f":"BI47","v":"97 euron tuotteen uusi hinta on 99 €. Montako prosenttia hinta nousee?"},null,null,null,null,null,null,null,null,null,null,null,null,null,null,null,null,null,null,null,null,null,null,null,null,null,null,5,0,5,5,{"$error":"#N/A"},"Prosenttiyks.",{"$f":"COUNTA(I20:J21)","v":0}]
[null,"Alennus%",null,"Nousu%",null,"Vertailu%",null,"6.",null,"x",{"$f":"BJ47","v":"Kuinka paljon on 28 % luvusta 97?"},null,null,null,null,null,null,null,null,null,null,null,null,null,null,null,null,null,null,null,null,null,null,null,null,null,null,{"$f":"IF(OR(ISBLANK(I10),I10=0),AL9,AL9+1)","v":5},{"$f":"IF(OR(ISBLANK(J10),J10=0),AM9,AM9+1)","v":1},6,{"$error":"#N/A"},{"$error":"#N/A"},"vertailu",{"$f":"COUNTA(I18:J19)","v":0}]
[null,"Min","Max","Min","Max","Min","Max","7.",null,"x",{"$f":"BK47","v":"97 euron tuotteesta saa 56 % alennuksen. Paljonko on alennus?"},null,null,null,null,null,null,null,null,null,null,null,null,null,null,null,null,null,null,null,null,null,null,null,null,null,null,5,2,7,{"$error":"#N/A"},{"$error":"#N/A"},"nousu",{"$f":"COUNTA(I8:J9,I13:J13,I14:J15,I17:J17,I24:J24,I26:J26)","v":3}]
[{"$f":"$I$4","v":"Sivu 1"},1,60,1,100,10,80,"8.",null,"x",{"$f":"BL47","v":"97 euron tuotteesta saa 56 % alennuksen. Paljonko on uusi hinta?"},null,null,null,null,null,null,null,null,null,null,null,null,null,null,null,null,null,null,null,null,null,null,null,null,null,null,5,3,8,{"$error":"#N/A"},{"$error":"#N/A"},"alennus",{"$f":"COUNTA(I6:J7,I11:J12,I14:J16,I23:J23,I25:J25)","v":4}]
[{"$f":"$J$4","v":"Sivu 2"},1,60,1,100,10,80,"9.",null,"x",{"$f":"BM47","v":"97 euron tuotteen hinta nousee 2 %. Paljonko on uusi hinta?"},null,null,null,null,null,null,null,null,null,null,null,null,null,null,null,null,null,null,null,null,null,null,null,null,null,null,5,4,9,{"$error":"#N/A"},{"$error":"#N/A"}]
[null,null,null,null,null,null,null,"10.",null,null,{"$f":"BN47","v":"97 euron tuotteesta saa 56 % alennuksen. Jonkun ajan kuluttua hinta nousee 2 %. Kuinka monta prosenttia hinnan muutos oli kaiken kaikkiaan?"},null,null,null,null,null,null,null,null,null,null,null,null,null,null,null,null,null,null,null,null,null,null,null,null,null,null,5,4,10,{"$error":"#N/A"},{"$error":"#N/A"}]
[null,"%yks. luvut",null,null,null,"Palkka/kk",null,"11.",null,null,{"$f":"BO47","v":"97 euron tuotteen hinta nousee 2 %.Jonkun ajan kuluttua hinta laskee 56 %. Kuinka monta prosenttia hinnan muutos oli kaiken kaikkiaan?"},null,null,null,null,null,null,null,null,null,null,null,null,null,null,null,null,null,null,null,null,null,null,null,null,null,null,5,4,11,{"$error":"#N/A"},{"$error":"#N/A"}]
[null,"Min","Max",null,null,"Min","Max","12.",null,null,{"$f":"BP47","v":"97 euron tuotteesta saa 56 % alennuksen. Jonkun ajan kuluttua hinta laskee vielä 46 %. Kuinka monta prosenttia hinnan lasku oli kaiken kaikkiaan?"},null,null,null,null,null,null,null,null,null,null,null,null,null,null,null,null,null,null,null,null,null,null,null,null,null,null,5,4,12,{"$error":"#N/A"},{"$error":"#N/A"}]
[{"$f":"$I$4","v":"Sivu 1"},1,100,null,null,1500,4000,"13.",null,null,{"$f":"BQ47","v":"97 euron tuotteen hinta nousee 2 %.Jonkun ajan kuluttua hinta nousee vielä 70 %. Kuinka monta prosenttia hinnan nousu oli kaiken kaikkiaan?"},null,null,null,null,null,null,null,null,null,null,null,null,null,null,null,null,null,null,null,null,null,null,null,null,null,null,5,4,13,{"$error":"#N/A"},{"$error":"#N/A"}]
[{"$f":"$J$4","v":"Sivu 2"},1,100,null,null,1500,4000,"14.",null,null,{"$f":"BR47","v":"Kuinka monta prosenttia luku 128 on suurempi kuin 97?"},null,null,null,null,null,null,null,null,null,null,null,null,null,null,null,null,null,null,null,null,null,null,null,null,null,null,5,4,14,{"$error":"#N/A"},{"$error":"#N/A"}]
[null,null,null,null,null,null,null,"15.",null,null,{"$f":"BS47","v":"Kuinka monta prosenttia luku 66 on pienempi kuin 97?"},null,null,null,null,null,null,null,null,null,null,null,null,null,null,null,null,null,null,null,null,null,null,null,null,null,null,5,4,15,{"$error":"#N/A"},{"$error":"#N/A"}]
[null,"Tuloraja",null,"Vero%",null,"+lisä%",null,"16.",null,null,{"$f":"BT47","v":"Prosenttiluku A on aluksi 12 %. Myöhemmin se on 96 %. Kuinka monta prosenttiyksikköä muutos on?"},null,null,null,null,null,null,null,null,null,null,null,null,null,null,null,null,null,null,null,null,null,null,null,null,null,null,5,4,16,{"$error":"#N/A"},{"$error":"#N/A"}]
[null,"Min","Max","Min","Max","Min","Max","17.",null,null,{"$f":"BU47","v":"Herra X:n kannatus edellisissä vaaleissa oli 12 %. Nyt se on 96 %. Kuinka monta prosenttiyksikköä muutos on?"},null,null,null,null,null,null,null,null,null,null,null,null,null,null,null,null,null,null,null,null,null,null,null,null,null,null,5,4,17,{"$error":"#N/A"},{"$error":"#N/A"}]
[{"$f":"$I$4","v":"Sivu 1"},1500,3000,15,30,15,25,"18.",null,null,{"$f":"BV47","v":"28 prosenttia eräästä luvusta on 97, mikä on tämä luku?"},null,null,null,null,null,null,null,null,null,null,null,null,null,null,null,null,null,null,null,null,null,null,null,null,null,null,5,4,18,{"$error":"#N/A"},{"$error":"#N/A"}]
[{"$f":"$J$4","v":"Sivu 2"},1500,3000,15,30,15,25,"19.",null,null,{"$f":"BW47","v":"Tuotteesta saadaan 56 % alennus. Alennus on 54,32 €. Mikä on alkuperäinen hinta?"},null,null,null,null,null,null,null,null,null,null,null,null,null,null,null,null,null,null,null,null,null,null,null,null,null,null,5,4,19,{"$error":"#N/A"},{"$error":"#N/A"}]
[null,null,null,null,null,null,null,"20.",null,null,{"$f":"BX47","v":"Tuotteen hinta nousee 2 %. Hinnannousu on 1,94 €. Mikä on alkuperäinen hinta?"},null,null,null,null,null,null,null,null,null,null,null,null,null,null,null,null,null,null,null,null,null,null,null,null,null,null,5,4,20,{"$error":"#N/A"},{"$error":"#N/A"}]
[null,"Korko%",null,"Pääoma",null,null,null,"21.",null,null,{"$f":"BY47","v":"Tuotteesta saadaan 56 % alennus. Hinta alennuksen jälkeen on 42,68 €. Mikä on alkuperäinen hinta?"},null,null,null,null,null,null,null,null,null,null,null,null,null,null,null,null,null,null,null,null,null,null,null,null,null,null,5,4,21,{"$error":"#N/A"},{"$error":"#N/A"}]
[null,"Min","Max","Min","Max",null,null,"22.",null,null,{"$f":"BZ47","v":"Tuotteen hinta nousee 2 %. Uusi hinta on 98,94 €. Mikä on alkuperäinen hinta?"},null,null,null,null,null,null,null,null,null,null,null,null,null,null,null,null,null,null,null,null,null,null,null,null,null,null,5,4,22,{"$error":"#N/A"},{"$error":"#N/A"}]
[{"$f":"$I$4","v":"Sivu 1"},0.1,5,100,5000,null,null,"23.",null,null,{"$f":"CA47","v":"Kalle saa palkkaa 3849 €. Paljonko hän maksaa veroja, kun hänen veroprosenttinsa on 29 %?"},null,null,null,null,null,null,null,null,null,null,null,null,null,null,null,null,null,null,null,null,null,null,null,null,null,null,5,4,23,{"$error":"#N/A"},{"$error":"#N/A"}]
[{"$f":"$J$4","v":"Sivu 2"},0.1,5,30,10000,null,null,"24.",null,null,{"$f":"CB47","v":"Kalle saa palkkaa 3849 €. Paljonko hänelle jää palkasta verojen jälkeen, kun hänen veroprosenttinsa on 29 %?"},null,null,null,null,null,null,null,null,null,null,null,null,null,null,null,null,null,null,null,null,null,null,null,null,null,null,5,4,24,{"$error":"#N/A"},{"$error":"#N/A"}]
[null,null,null,null,null,null,null,"25.",null,null,{"$f":"CC47","v":"Kalle saa palkkaa 3849 €/kk. Kallen veroprosentti on 29 %, tuloraja on 1733 € ja lisäprosentti 46 %.  Paljonko hän maksaa veroja?"},null,null,null,null,null,null,null,null,null,null,null,null,null,null,null,null,null,null,null,null,null,null,null,null,null,null,5,4,25,{"$error":"#N/A"},{"$error":"#N/A"}]
[null,"Vuosia",null,"Kuukausia",null,"Päiviä",null,"26.",null,null,{"$f":"CD47","v":"Kalle saa palkkaa 3849 €/kk. Kallen veroprosentti on 29 %, tuloraja on 1733 € ja lisäprosentti 46 %.  Paljonko hänelle jää käteen verojen jälkeen?"},null,null,null,null,null,null,null,null,null,null,null,null,null,null,null,null,null,null,null,null,null,null,null,null,null,null,5,4,26,{"$error":"#N/A"},{"$error":"#N/A"}]
[null,"Min","Max","Min","Max","Min","Max","27.",null,null,{"$f":"CE47","v":"Pankkitilillä on rahaa 1984 €. Korkoprosentti on 0,1 %. Kuinka paljon se tuottaa korkoa vuodessa?"},null,null,null,null,null,null,null,null,null,null,null,null,null,null,null,null,null,null,null,null,null,null,null,null,null,null,5,4,27,{"$error":"#N/A"},{"$error":"#N/A"}]
[{"$f":"$I$4","v":"Sivu 1"},1,5,2,11,1,365,"28.",null,null,{"$f":"CF47","v":"Pankkitilillä on rahaa 1984 €. Korkoprosentti on 0,1 %. Kuinka paljon tilillä on rahaa vuoden kuluttua?"},null,null,null,null,null,null,null,null,null,null,null,null,null,null,null,null,null,null,null,null,null,null,null,null,null,null,5,4,28,{"$error":"#N/A"},{"$error":"#N/A"}]
[{"$f":"$J$4","v":"Sivu 2"},1,10,2,11,1,365,"29.",null,null,{"$f":"CG47","v":"Kuinka paljon 1984 € laina kasvaa korkoa kuukaudessa, kun korkoprosentti on 0,1 %?"},null,null,null,null,null,null,null,null,null,null,null,null,null,null,null,null,null,null,null,null,null,null,null,null,null,null,{"$f":"IF(OR(ISBLANK(I33),I33=0),AL32,AL32+1)","v":5},{"$f":"IF(OR(ISBLANK(J33),J33=0),AM32,AM32+1)","v":4},29,{"$f":"RANK(AN33,AL$5:AL$42,1)","v":{"$error":"#N/A"}},{"$f":"RANK(AN33,AM$5:AM$42,1)","v":{"$error":"#N/A"}}]
[null,null,null,null,null,null,null,"30.",null,null,{"$f":"CH47","v":"Kuinka paljon 1984 € laina kasvaa korkoa 10 kuukaudessa, kun korkoprosentti on 0,1 %?"},null,null,null,null,null,null,null,null,null,null,null,null,null,null,null,null,null,null,null,null,null,null,null,null,null,null,5,4,30,{"$error":"#N/A"},{"$error":"#N/A"}]
[null,null,null,null,null,null,null,"31.",null,null,{"$f":"CI47","v":"Kuinka paljon 1984 € laina kasvaa korkoa 329 päivässä, kun korkoprosentti on 0,1 %?"},null,null,null,null,null,null,null,null,null,null,null,null,null,null,null,null,null,null,null,null,null,null,null,null,null,null,5,4,31,{"$error":"#N/A"},{"$error":"#N/A"}]
[null,null,null,null,null,null,null,"32.",null,null,{"$f":"CJ47","v":"Kuinka monta päivää 1984 € lainan pitää kasvaa korkoa, jotta korko olisi 1,79 €. Korkoprosentti on 0,1 %?"},null,null,null,null,null,null,null,null,null,null,null,null,null,null,null,null,null,null,null,null,null,null,null,null,null,null,{"$f":"IF(OR(ISBLANK(I36),I36=0),AL35,AL35+1)","v":5},{"$f":"IF(OR(ISBLANK(J36),J36=0),AM35,AM35+1)","v":4},32,{"$f":"RANK(AN36,AL$5:AL$42,1)","v":{"$error":"#N/A"}},{"$f":"RANK(AN36,AM$5:AM$42,1)","v":{"$error":"#N/A"}}]
[null,null,null,null,null,null,null,"33.",null,null,{"$f":"CK47","v":"Mikä on lainan korkoprosentin oltava, jotta 1984 € laina kasvaa korkoa 1,79 €, kun laina-aika on 329 päivää?"},null,null,null,null,null,null,null,null,null,null,null,null,null,null,null,null,null,null,null,null,null,null,null,null,null,null,5,4,33,{"$error":"#N/A"},{"$error":"#N/A"}]
[null,null,null,null,null,null,null,"34.",null,null,{"$f":"CL47","v":"Kuinka paljon on lainan pääoma, kun 329 päivässä kertyy korkoa 1,79 € korkoprosentin ollessa 0,1 %."},null,null,null,null,null,null,null,null,null,null,null,null,null,null,null,null,null,null,null,null,null,null,null,null,null,null,5,4,34,{"$error":"#N/A"},{"$error":"#N/A"}]
[null,null,null,null,null,null,null,"35.",null,null,{"$f":"CM47","v":"Pankkitilillä on rahaa 1984 €. Korkoprosentti on 0,1 %. Kuinka paljon tilillä on rahaa 1 vuoden kuluttua, kun korko lisätään tilille aina vuoden kuluttua?"},null,null,null,null,null,null,null,null,null,null,null,null,null,null,null,null,null,null,null,null,null,null,null,null,null,null,5,4,35,{"$error":"#N/A"},{"$error":"#N/A"}]
[null,null,null,null,null,null,null,"36.",null,null,{"$f":"CN47","v":"Pankkitilillä on rahaa 1984 €. Korkoprosentti on 0,1 %. Kuinka paljon korkoa kertyy 1 vuodessa kuluttua, kun korko lisätään tilille aina vuoden kuluttua?"},null,null,null,null,null,null,null,null,null,null,null,null,null,null,null,null,null,null,null,null,null,null,null,null,null,null,5,4,36,{"$error":"#N/A"},{"$error":"#N/A"}]
[null,null,null,null,null,null,null,"37.",null,null,{"$f":"CO47","v":"Kuinka paljon on 85 promillea luvusta 97?"},null,null,null,null,null,null,null,null,null,null,null,null,null,null,null,null,null,null,null,null,null,null,null,null,null,null,5,4,37,{"$error":"#N/A"},{"$error":"#N/A"}]
[null,null,null,null,null,null,null,"38.",null,null,{"$f":"CP47","v":"Kuinka monta promillea luku 8,25 on luvusta 97?"},null,null,null,null,null,null,null,null,null,null,null,null,null,null,null,null,null,null,null,null,null,null,null,null,null,null,5,4,38,{"$error":"#N/A"},{"$error":"#N/A"}]
[]
["Vastaukset loppuun (0 = ei, 1 = kyllä)",null,null,null,null,1]
["Tulostuva alue alkaa",null,null,null,null,"Alla olevaan kenttään voi kirjoittaa itse",null,null,null,null,null,null,null,"Muuta alla olevia lukuja haluamiksesi. Näkyvillä ovat vain ne luvut, mitä kyseisessä laskussa käytetään.",null,null,null,null,null,null,null,null,null,null,null,null,null,null,null,null,null,null,null,null,null,null,null,null,"Arvottuja laskuvaihtoehtoja"]
["Laske. Merkitse välivaiheet!",null,null,null,null,null,null,null,null,null,null,null,"Sivu 1.","Laskunro","Prosentti","Perusarvo","Alennus%","Ale2 %","Nousu%","Nousu2 %","Vertailu%","Pros.yks.1","Pros.yks.2","Palkka","Tuloraja","Vero%","Lisää vero%","Korko%","Vuosia","Pääoma","Kuukausia","Päiviä","Promille",null,"Laskunro","Prosentti","Perusarvo","Alennus%","Alennus2%","Nousu%","Nousu2%","Vertailu%","Pros.yks.1","Pros.yks.2","Palkka","Tuloraja","Vero%","Lisää vero%","Korko%","Vuosia","Pääoma","Kuukausia","Päiviä","Promille",null,"arpa",1,2,3,4,5,6,7,8,9,10,11,12,13,14,15,16,17,18,19,20,21,22,23,24,25,26,27,28,29,30,31,32,33,34,35,36,37,38]
["1.",{"$f":"INDEX(BE47:CP47,,N47)","v":"97 euron tuotteen uusi hinta on 43 €. Montako prosenttia alennus on?"},null,null,null,null,null,null,null,null,null,null,null,3,28,97,56,46,2,70,32,12,96,3849,1733,29,17,0.1,1,1984,10,329,85,null,{"$f":"INDEX($AN$5:$AN$42,INDEX($AO$5:$AO$42,BD47,))","v":2},{"$f":"RANDBETWEEN($B$7,$C$7)","v":76},{"$f":"RANDBETWEEN($D$7,$E$7)","v":181},{"$f":"RANDBETWEEN($B$12,$C$12)","v":29},57,{"$f":"RANDBETWEEN($D$12,$E$12)","v":38},67,{"$f":"RANDBETWEEN($F$12,$G$12)","v":63},{"$f":"RANDBETWEEN($B$17,$C$17)","v":50},{"$f":"RANDBETWEEN($B$17,$C$17)","v":19},{"$f":"RANDBETWEEN($F$17,$G$17)","v":3486},{"$f":"RANDBETWEEN($B$22,$C$22)","v":2174},{"$f":"RANDBETWEEN($D$22,$E$22)","v":17},{"$f":"RANDBETWEEN($F$22,$G$22)","v":24},{"$f":"RANDBETWEEN($B$27*10,$C$27*10)/10","v":0.2},{"$f":"RANDBETWEEN($B$32,$C$32)","v":2},{"$f":"RANDBETWEEN($D$27,$E$27)","v":690},{"$f":"RANDBETWEEN($D$32,$E$32)","v":10},{"$f":"RANDBETWEEN($F$32,$G$32)","v":40},{"$f":"RANDBETWEEN($F$7,$G$7)","v":1},null,{"$f":"RANDBETWEEN(1,$AL$42)","v":2},{"$f":"CONCATENATE(\"Kuinka monta prosenttia luku \",ROUND(O47*P47/100,0), \" on luvusta \",P47,\"?\")","v":"Kuinka monta prosenttia luku 27 on luvusta 97?"},{"$f":"CONCATENATE(P47,\" euron tuotteesta saa \",ROUND(Q47*P47/100,0), \" € alennuksen. Montako prosenttia alennus on?\")","v":"97 euron tuotteesta saa 54 € alennuksen. Montako prosenttia alennus on?"},{"$f":"CONCATENATE(P47,\" euron tuotteen uusi hinta on \",P47-ROUND(Q47*P47/100,0), \" €. Montako prosenttia alennus on?\")","v":"97 euron tuotteen uusi hinta on 43 €. Montako prosenttia alennus on?"},{"$f":"CONCATENATE(P47,\" euron tuotteen hinta nousee \",ROUND(S47*P47/100,0), \" €. Montako prosenttia hinta nousee?\")","v":"97 euron tuotteen hinta nousee 2 €. Montako prosenttia hinta nousee?"},{"$f":"CONCATENATE(P47,\" euron tuotteen uusi hinta on \",P47+ROUND(S47*P47/100,0), \" €. Montako prosenttia hinta nousee?\")","v":"97 euron tuotteen uusi hinta on 99 €. Montako prosenttia hinta nousee?"},{"$f":"CONCATENATE(\"Kuinka paljon on \",O47, \" % luvusta \",P47,\"?\")","v":"Kuinka paljon on 28 % luvusta 97?"},{"$f":"CONCATENATE(P47,\" euron tuotteesta saa \",Q47, \" % alennuksen. Paljonko on alennus?\")","v":"97 euron tuotteesta saa 56 % alennuksen. Paljonko on alennus?"},{"$f":"CONCATENATE(P47,\" euron tuotteesta saa \",Q47, \" % alennuksen. Paljonko on uusi hinta?\")","v":"97 euron tuotteesta saa 56 % alennuksen. Paljonko on uusi hinta?"},{"$f":"CONCATENATE(P47,\" euron tuotteen hinta nousee \",S47, \" %. Paljonko on uusi hinta?\")","v":"97 euron tuotteen hinta nousee 2 %. Paljonko on uusi hinta?"},{"$f":"CONCATENATE(P47,\" euron tuotteesta saa \",Q47, \" % alennuksen. Jonkun ajan kuluttua hinta nousee \", S47, \" %. Kuinka monta prosenttia hinnan muutos oli kaiken kaikkiaan?\")","v":"97 euron tuotteesta saa 56 % alennuksen. Jonkun ajan kuluttua hinta nousee 2 %. Kuinka monta prosenttia hinnan muutos oli kaiken kaikkiaan?"},{"$f":"CONCATENATE(P47,\" euron tuotteen hinta nousee \",S47, \" %.Jonkun ajan kuluttua hinta laskee \", Q47, \" %. Kuinka monta prosenttia hinnan muutos oli kaiken kaikkiaan?\")","v":"97 euron tuotteen hinta nousee 2 %.Jonkun ajan kuluttua hinta laskee 56 %. Kuinka monta prosenttia hinnan muutos oli kaiken kaikkiaan?"},{"$f":"CONCATENATE(P47,\" euron tuotteesta saa \",Q47, \" % alennuksen. Jonkun ajan kuluttua hinta laskee vielä \", R47, \" %. Kuinka monta prosenttia hinnan lasku oli kaiken kaikkiaan?\")","v":"97 euron tuotteesta saa 56 % alennuksen. Jonkun ajan kuluttua hinta laskee vielä 46 %. Kuinka monta prosenttia hinnan lasku oli kaiken kaikkiaan?"},{"$f":"CONCATENATE(P47,\" euron tuotteen hinta nousee \",S47, \" %.Jonkun ajan kuluttua hinta nousee vielä \", T47, \" %. Kuinka monta prosenttia hinnan nousu oli kaiken kaikkiaan?\")","v":"97 euron tuotteen hinta nousee 2 %.Jonkun ajan kuluttua hinta nousee vielä 70 %. Kuinka monta prosenttia hinnan nousu oli kaiken kaikkiaan?"},{"$f":"CONCATENATE(\"Kuinka monta prosenttia luku \",ROUND(P47*(100+U47)/100,0),\" on suurempi kuin \",P47,\"?\")","v":"Kuinka monta prosenttia luku 128 on suurempi kuin 97?"},{"$f":"CONCATENATE(\"Kuinka monta prosenttia luku \",ROUND(P47*(100-U47)/100,0),\" on pienempi kuin \",P47,\"?\")","v":"Kuinka monta prosenttia luku 66 on pienempi kuin 97?"},{"$f":"CONCATENATE(\"Prosenttiluku A on aluksi \",V47,\" %. Myöhemmin se on \",W47,\" %. Kuinka monta prosenttiyksikköä muutos on?\")","v":"Prosenttiluku A on aluksi 12 %. Myöhemmin se on 96 %. Kuinka monta prosenttiyksikköä muutos on?"},{"$f":"CONCATENATE(\"Herra X:n kannatus edellisissä vaaleissa oli \",V47,\" %. Nyt se on \",W47,\" %. Kuinka monta prosenttiyksikköä muutos on?\")","v":"Herra X:n kannatus edellisissä vaaleissa oli 12 %. Nyt se on 96 %. Kuinka monta prosenttiyksikköä muutos on?"},{"$f":"CONCATENATE(O47,\" prosenttia eräästä luvusta on \",P47,\", mikä on tämä luku?\")","v":"28 prosenttia eräästä luvusta on 97, mikä on tämä luku?"},{"$f":"CONCATENATE(\"Tuotteesta saadaan \",Q47,\" % alennus. Alennus on \",ROUND(P47*Q47/100,2),\" €. Mikä on alkuperäinen hinta?\")","v":"Tuotteesta saadaan 56 % alennus. Alennus on 54,32 €. Mikä on alkuperäinen hinta?"},{"$f":"CONCATENATE(\"Tuotteen hinta nousee \",S47,\" %. Hinnannousu on \",ROUND(P47*S47/100,2),\" €. Mikä on alkuperäinen hinta?\")","v":"Tuotteen hinta nousee 2 %. Hinnannousu on 1,94 €. Mikä on alkuperäinen hinta?"},{"$f":"CONCATENATE(\"Tuotteesta saadaan \",Q47,\" % alennus. Hinta alennuksen jälkeen on \",ROUND(P47*(100-Q47)/100,2),\" €. Mikä on alkuperäinen hinta?\")","v":"Tuotteesta saadaan 56 % alennus. Hinta alennuksen jälkeen on 42,68 €. Mikä on alkuperäinen hinta?"},{"$f":"CONCATENATE(\"Tuotteen hinta nousee \",S47,\" %. Uusi hinta on \",ROUND(P47*(100+S47)/100,2),\" €. Mikä on alkuperäinen hinta?\")","v":"Tuotteen hinta nousee 2 %. Uusi hinta on 98,94 €. Mikä on alkuperäinen hinta?"},{"$f":"CONCATENATE(\"Kalle saa palkkaa \",X47,\" €. Paljonko hän maksaa veroja, kun hänen veroprosenttinsa on \",Z47,\" %?\")","v":"Kalle saa palkkaa 3849 €. Paljonko hän maksaa veroja, kun hänen veroprosenttinsa on 29 %?"},{"$f":"CONCATENATE(\"Kalle saa palkkaa \",X47,\" €. Paljonko hänelle jää palkasta verojen jälkeen, kun hänen veroprosenttinsa on \",Z47,\" %?\")","v":"Kalle saa palkkaa 3849 €. Paljonko hänelle jää palkasta verojen jälkeen, kun hänen veroprosenttinsa on 29 %?"},{"$f":"CONCATENATE(\"Kalle saa palkkaa \",X47,\" €/kk. Kallen veroprosentti on \",Z47,\" %, tuloraja on \",Y47,\" € ja lisäprosentti \",Z47+AA47, \" %.  Paljonko hän maksaa veroja?\")","v":"Kalle saa palkkaa 3849 €/kk. Kallen veroprosentti on 29 %, tuloraja on 1733 € ja lisäprosentti 46 %.  Paljonko hän maksaa veroja?"},{"$f":"CONCATENATE(\"Kalle saa palkkaa \",X47,\" €/kk. Kallen veroprosentti on \",Z47,\" %, tuloraja on \",Y47,\" € ja lisäprosentti \",Z47+AA47, \" %.  Paljonko hänelle jää käteen verojen jälkeen?\")","v":"Kalle saa palkkaa 3849 €/kk. Kallen veroprosentti on 29 %, tuloraja on 1733 € ja lisäprosentti 46 %.  Paljonko hänelle jää käteen verojen jälkeen?"},{"$f":"CONCATENATE(\"Pankkitilillä on rahaa \",AD47,\" €. Korkoprosentti on \", AB47,\" %. Kuinka paljon se tuottaa korkoa vuodessa?\")","v":"Pankkitilillä on rahaa 1984 €. Korkoprosentti on 0,1 %. Kuinka paljon se tuottaa korkoa vuodessa?"},{"$f":"CONCATENATE(\"Pankkitilillä on rahaa \",AD47,\" €. Korkoprosentti on \", AB47,\" %. Kuinka paljon tilillä on rahaa vuoden kuluttua?\")","v":"Pankkitilillä on rahaa 1984 €. Korkoprosentti on 0,1 %. Kuinka paljon tilillä on rahaa vuoden kuluttua?"},{"$f":"CONCATENATE(\"Kuinka paljon \",AD47,\" € laina kasvaa korkoa kuukaudessa, kun korkoprosentti on \", AB47,\" %?\")","v":"Kuinka paljon 1984 € laina kasvaa korkoa kuukaudessa, kun korkoprosentti on 0,1 %?"},{"$f":"CONCATENATE(\"Kuinka paljon \",AD47,\" € laina kasvaa korkoa \", AE47,\" kuukaudessa, kun korkoprosentti on \", AB47,\" %?\")","v":"Kuinka paljon 1984 € laina kasvaa korkoa 10 kuukaudessa, kun korkoprosentti on 0,1 %?"},{"$f":"CONCATENATE(\"Kuinka paljon \",AD47,\" € laina kasvaa korkoa \", AF47,\" päivässä, kun korkoprosentti on \", AB47,\" %?\")","v":"Kuinka paljon 1984 € laina kasvaa korkoa 329 päivässä, kun korkoprosentti on 0,1 %?"},{"$f":"CONCATENATE(\"Kuinka monta päivää \",AD47,\" € lainan pitää kasvaa korkoa, jotta korko olisi \",ROUND(AD47*AB47/100/365*AF47,2),\" €. Korkoprosentti on \", AB47,\" %?\")","v":"Kuinka monta päivää 1984 € lainan pitää kasvaa korkoa, jotta korko olisi 1,79 €. Korkoprosentti on 0,1 %?"},{"$f":"CONCATENATE(\"Mikä on lainan korkoprosentin oltava, jotta \",AD47,\" € laina kasvaa korkoa \",ROUND(AD47*AB47/100/365*AF47,2),\" €, kun laina-aika on \", AF47, \" päivää?\")","v":"Mikä on lainan korkoprosentin oltava, jotta 1984 € laina kasvaa korkoa 1,79 €, kun laina-aika on 329 päivää?"},{"$f":"CONCATENATE(\"Kuinka paljon on lainan pääoma, kun \",AF47,\" päivässä kertyy korkoa \",ROUND(AD47*AB47/100/365*AF47,2),\" € korkoprosentin ollessa \", AB47,\" %.\")","v":"Kuinka paljon on lainan pääoma, kun 329 päivässä kertyy korkoa 1,79 € korkoprosentin ollessa 0,1 %."},{"$f":"CONCATENATE(\"Pankkitilillä on rahaa \",AD47,\" €. Korkoprosentti on \", AB47,\" %. Kuinka paljon tilillä on rahaa \",AC47,\" vuoden kuluttua, kun korko lisätään tilille aina vuoden kuluttua?\")","v":"Pankkitilillä on rahaa 1984 €. Korkoprosentti on 0,1 %. Kuinka paljon tilillä on rahaa 1 vuoden kuluttua, kun korko lisätään tilille aina vuoden kuluttua?"},{"$f":"CONCATENATE(\"Pankkitilillä on rahaa \",AD47,\" €. Korkoprosentti on \", AB47,\" %. Kuinka paljon korkoa kertyy \",AC47,\" vuodessa kuluttua, kun korko lisätään tilille aina vuoden kuluttua?\")","v":"Pankkitilillä on rahaa 1984 €. Korkoprosentti on 0,1 %. Kuinka paljon korkoa kertyy 1 vuodessa kuluttua, kun korko lisätään tilille aina vuoden kuluttua?"},{"$f":"CONCATENATE(\"Kuinka paljon on \",AG47, \" promillea luvusta \",P47,\"?\")","v":"Kuinka paljon on 85 promillea luvusta 97?"},{"$f":"CONCATENATE(\"Kuinka monta promillea luku \",ROUND(P47*AG47/1000,2), \" on luvusta \",P47,\"?\")","v":"Kuinka monta promillea luku 8,25 on luvusta 97?"}]
["2.","95 euron tuotteen uusi hinta on 186 €. Montako prosenttia hinta nousee?",null,null,null,null,null,null,null,null,null,null,null,5,40,95,44,20,96,91,42,77,1,3777,2023,26,19,3.9,5,2526,2,257,53,null,3,63,128,58,1,27,32,22,{"$f":"RANDBETWEEN($B$17,$C$17)","v":30},11,2593,2794,{"$f":"RANDBETWEEN($D$22,$E$22)","v":22},{"$f":"RANDBETWEEN($F$22,$G$22)","v":24},2.5,4,4269,5,155,{"$f":"RANDBETWEEN($F$7,$G$7)","v":63},null,3,{"$f":"CONCATENATE(\"Kuinka monta prosenttia luku \",ROUND(O48*P48/100,0), \" on luvusta \",P48,\"?\")","v":"Kuinka monta prosenttia luku 38 on luvusta 95?"},{"$f":"CONCATENATE(P48,\" euron tuotteesta saa \",ROUND(Q48*P48/100,0), \" € alennuksen. Montako prosenttia alennus on?\")","v":"95 euron tuotteesta saa 42 € alennuksen. Montako prosenttia alennus on?"},"95 euron tuotteen uusi hinta on 53 €. Montako prosenttia alennus on?",{"$f":"CONCATENATE(P48,\" euron tuotteen hinta nousee \",ROUND(S48*P48/100,0), \" €. Montako prosenttia hinta nousee?\")","v":"95 euron tuotteen hinta nousee 91 €. Montako prosenttia hinta nousee?"},{"$f":"CONCATENATE(P48,\" euron tuotteen uusi hinta on \",P48+ROUND(S48*P48/100,0), \" €. Montako prosenttia hinta nousee?\")","v":"95 euron tuotteen uusi hinta on 186 €. Montako prosenttia hinta nousee?"},{"$f":"CONCATENATE(\"Kuinka paljon on \",O48, \" % luvusta \",P48,\"?\")","v":"Kuinka paljon on 40 % luvusta 95?"},{"$f":"CONCATENATE(P48,\" euron tuotteesta saa \",Q48, \" % alennuksen. Paljonko on alennus?\")","v":"95 euron tuotteesta saa 44 % alennuksen. Paljonko on alennus?"},{"$f":"CONCATENATE(P48,\" euron tuotteesta saa \",Q48, \" % alennuksen. Paljonko on uusi hinta?\")","v":"95 euron tuotteesta saa 44 % alennuksen. Paljonko on uusi hinta?"},{"$f":"CONCATENATE(P48,\" euron tuotteen hinta nousee \",S48, \" %. Paljonko on uusi hinta?\")","v":"95 euron tuotteen hinta nousee 96 %. Paljonko on uusi hinta?"},{"$f":"CONCATENATE(P48,\" euron tuotteesta saa \",Q48, \" % alennuksen. Jonkun ajan kuluttua hinta nousee \", S48, \" %. Kuinka monta prosenttia hinnan muutos oli kaiken kaikkiaan?\")","v":"95 euron tuotteesta saa 44 % alennuksen. Jonkun ajan kuluttua hinta nousee 96 %. Kuinka monta prosenttia hinnan muutos oli kaiken kaikkiaan?"},{"$f":"CONCATENATE(P48,\" euron tuotteen hinta nousee \",S48, \" %.Jonkun ajan kuluttua hinta laskee \", Q48, \" %. Kuinka monta prosenttia hinnan muutos oli kaiken kaikkiaan?\")","v":"95 euron tuotteen hinta nousee 96 %.Jonkun ajan kuluttua hinta laskee 44 %. Kuinka monta prosenttia hinnan muutos oli kaiken kaikkiaan?"},{"$f":"CONCATENATE(P48,\" euron tuotteesta saa \",Q48, \" % alennuksen. Jonkun ajan kuluttua hinta laskee vielä \", R48, \" %. Kuinka monta prosenttia hinnan lasku oli kaiken kaikkiaan?\")","v":"95 euron tuotteesta saa 44 % alennuksen. Jonkun ajan kuluttua hinta laskee vielä 20 %. Kuinka monta prosenttia hinnan lasku oli kaiken kaikkiaan?"},{"$f":"CONCATENATE(P48,\" euron tuotteen hinta nousee \",S48, \" %.Jonkun ajan kuluttua hinta nousee vielä \", T48, \" %. Kuinka monta prosenttia hinnan nousu oli kaiken kaikkiaan?\")","v":"95 euron tuotteen hinta nousee 96 %.Jonkun ajan kuluttua hinta nousee vielä 91 %. Kuinka monta prosenttia hinnan nousu oli kaiken kaikkiaan?"},{"$f":"CONCATENATE(\"Kuinka monta prosenttia luku \",ROUND(P48*(100+U48)/100,0),\" on suurempi kuin \",P48)","v":"Kuinka monta prosenttia luku 135 on suurempi kuin 95"},"Kuinka monta prosenttia luku 55 on pienempi kuin 95?","Prosenttiluku A on aluksi 77 %. Myöhemmin se on 1 %. Kuinka monta prosenttiyksikköä muutos on?","Herra X:n kannatus edellisissä vaaleissa oli 77 %. Nyt se on 1 %. Kuinka monta prosenttiyksikköä muutos on?",{"$f":"CONCATENATE(O48,\" prosenttia eräästä luvusta on \",P48,\", mikä on tämä luku?\")","v":"40 prosenttia eräästä luvusta on 95, mikä on tämä luku?"},"Tuotteesta saadaan 44 % alennus. Alennus on 41,8 €. Mikä on alkuperäinen hinta?","Tuotteen hinta nousee 96 %. Hinnannousu on 91,2 €. Mikä on alkuperäinen hinta?","Tuotteesta saadaan 44 % alennus. Hinta alennuksen jälkeen on 53,2 €. Mikä on alkuperäinen hinta?","Tuotteen hinta nousee 96 %. Uusi hinta on 186,2 €. Mikä on alkuperäinen hinta?",{"$f":"CONCATENATE(\"Kalle saa palkkaa \",X48,\" €. Paljonko hän maksaa veroja, kun hänen veroprosenttinsa on \",Z48,\" %?\")","v":"Kalle saa palkkaa 3777 €. Paljonko hän maksaa veroja, kun hänen veroprosenttinsa on 26 %?"},"Kalle saa palkkaa 3777 €. Paljonko hänelle jää palkasta verojen jälkeen, kun hänen veroprosenttinsa on 26 %?","Kalle saa palkkaa 3777 €/kk. Kallen veroprosentti on 26 %, tuloraja on 2023 € ja lisäprosentti 45 %.  Paljonko hän maksaa veroja?","Kalle saa palkkaa 3777 €/kk. Kallen veroprosentti on 26 %, tuloraja on 2023 € ja lisäprosentti 45 %.  Paljonko hänelle jää käteen verojen jälkeen?",{"$f":"CONCATENATE(\"Pankkitilillä on rahaa \",AD48,\" €. Korkoprosentti on \", AB48,\" %. Kuinka paljon se tuottaa korkoa vuodessa?\")","v":"Pankkitilillä on rahaa 2526 €. Korkoprosentti on 3,9 %. Kuinka paljon se tuottaa korkoa vuodessa?"},"Pankkitilillä on rahaa 2526 €. Korkoprosentti on 3,9 %. Kuinka paljon tilillä on rahaa vuoden kuluttua?",{"$f":"CONCATENATE(\"Kuinka paljon \",AD48,\" € laina kasvaa korkoa kuukaudessa, kun korkoprosentti on \", AB48,\" %?\")","v":"Kuinka paljon 2526 € laina kasvaa korkoa kuukaudessa, kun korkoprosentti on 3,9 %?"},{"$f":"CONCATENATE(\"Kuinka paljon \",AD48,\" € laina kasvaa korkoa \", AE48,\" kuukaudessa, kun korkoprosentti on \", AB48,\" %?\")","v":"Kuinka paljon 2526 € laina kasvaa korkoa 2 kuukaudessa, kun korkoprosentti on 3,9 %?"},{"$f":"CONCATENATE(\"Kuinka paljon \",AD48,\" € laina kasvaa korkoa \", AF48,\" päivässä, kun korkoprosentti on \", AB48,\" %?\")","v":"Kuinka paljon 2526 € laina kasvaa korkoa 257 päivässä, kun korkoprosentti on 3,9 %?"},{"$f":"CONCATENATE(\"Kuinka monta päivää \",AD48,\" € lainan pitää kasvaa korkoa, jotta korko olisi \",ROUND(AD48*AB48/100/365*AF48,2),\" €. Korkoprosentti on \", AB48,\" %?\")","v":"Kuinka monta päivää 2526 € lainan pitää kasvaa korkoa, jotta korko olisi 69,36 €. Korkoprosentti on 3,9 %?"},{"$f":"CONCATENATE(\"Mikä on lainan korkoprosentin oltava, jotta \",AD48,\" € laina kasvaa korkoa \",ROUND(AD48*AB48/100/365*AF48,2),\" €, kun laina-aika on \", AF48, \" päivää?\")","v":"Mikä on lainan korkoprosentin oltava, jotta 2526 € laina kasvaa korkoa 69,36 €, kun laina-aika on 257 päivää?"},{"$f":"CONCATENATE(\"Kuinka paljon on lainan pääoma, kun \",AF48,\" päivässä kertyy korkoa \",ROUND(AD48*AB48/100/365*AF48,2),\" € korkoprosentin ollessa \", AB48,\" %.\")","v":"Kuinka paljon on lainan pääoma, kun 257 päivässä kertyy korkoa 69,36 € korkoprosentin ollessa 3,9 %."},{"$f":"CONCATENATE(\"Pankkitilillä on rahaa \",AD48,\" €. Korkoprosentti on \", AB48,\" %. Kuinka paljon tilillä on rahaa \",AC48,\" vuoden kuluttua, kun korko lisätään tilille aina vuoden kuluttua?\")","v":"Pankkitilillä on rahaa 2526 €. Korkoprosentti on 3,9 %. Kuinka paljon tilillä on rahaa 5 vuoden kuluttua, kun korko lisätään tilille aina vuoden kuluttua?"},{"$f":"CONCATENATE(\"Pankkitilillä on rahaa \",AD48,\" €. Korkoprosentti on \", AB48,\" %. Kuinka paljon korkoa kertyy \",AC48,\" vuodessa kuluttua, kun korko lisätään tilille aina vuoden kuluttua?\")","v":"Pankkitilillä on rahaa 2526 €. Korkoprosentti on 3,9 %. Kuinka paljon korkoa kertyy 5 vuodessa kuluttua, kun korko lisätään tilille aina vuoden kuluttua?"},"Kuinka paljon on 53 promillea luvusta 95?",{"$f":"CONCATENATE(\"Kuinka monta promillea luku \",ROUND(P48*AG48/1000,2), \" on luvusta \",P48,\"?\")","v":"Kuinka monta promillea luku 5,04 on luvusta 95?"}]
["3.","Kuinka monta prosenttia luku 14 on luvusta 41?",null,null,null,null,null,null,null,null,null,null,null,1,33,41,51,55,89,84,46,18,76,1897,1764,18,21,3,1,3868,8,142,10,null,1,48,38,48,49,15,68,58,10,68,2127,1591,25,23,4.8,1,638,2,298,78,null,1,"Kuinka monta prosenttia luku 14 on luvusta 41?","41 euron tuotteesta saa 21 € alennuksen. Montako prosenttia alennus on?","41 euron tuotteen uusi hinta on 20 €. Montako prosenttia alennus on?","41 euron tuotteen hinta nousee 36 €. Montako prosenttia hinta nousee?","41 euron tuotteen uusi hinta on 77 €. Montako prosenttia hinta nousee?","Kuinka paljon on 33 % luvusta 41?","41 euron tuotteesta saa 51 % alennuksen. Paljonko on alennus?","41 euron tuotteesta saa 51 % alennuksen. Paljonko on uusi hinta?","41 euron tuotteen hinta nousee 89 %. Paljonko on uusi hinta?","41 euron tuotteesta saa 51 % alennuksen. Jonkun ajan kuluttua hinta nousee 89 %. Kuinka monta prosenttia hinnan muutos oli kaiken kaikkiaan?","41 euron tuotteen hinta nousee 89 %.Jonkun ajan kuluttua hinta laskee 51 %. Kuinka monta prosenttia hinnan muutos oli kaiken kaikkiaan?","41 euron tuotteesta saa 51 % alennuksen. Jonkun ajan kuluttua hinta laskee vielä 55 %. Kuinka monta prosenttia hinnan lasku oli kaiken kaikkiaan?","41 euron tuotteen hinta nousee 89 %.Jonkun ajan kuluttua hinta nousee vielä 84 %. Kuinka monta prosenttia hinnan nousu oli kaiken kaikkiaan?","Kuinka monta prosenttia luku 60 on suurempi kuin 41","Kuinka monta prosenttia luku 22 on pienempi kuin 41?","Prosenttiluku A on aluksi 18 %. Myöhemmin se on 76 %. Kuinka monta prosenttiyksikköä muutos on?","Herra X:n kannatus edellisissä vaaleissa oli 18 %. Nyt se on 76 %. Kuinka monta prosenttiyksikköä muutos on?","33 prosenttia eräästä luvusta on 41, mikä on tämä luku?","Tuotteesta saadaan 51 % alennus. Alennus on 20,91 €. Mikä on alkuperäinen hinta?","Tuotteen hinta nousee 89 %. Hinnannousu on 36,49 €. Mikä on alkuperäinen hinta?","Tuotteesta saadaan 51 % alennus. Hinta alennuksen jälkeen on 20,09 €. Mikä on alkuperäinen hinta?","Tuotteen hinta nousee 89 %. Uusi hinta on 77,49 €. Mikä on alkuperäinen hinta?","Kalle saa palkkaa 1897 €. Paljonko hän maksaa veroja, kun hänen veroprosenttinsa on 18 %?","Kalle saa palkkaa 1897 €. Paljonko hänelle jää palkasta verojen jälkeen, kun hänen veroprosenttinsa on 18 %?","Kalle saa palkkaa 1897 €/kk. Kallen veroprosentti on 18 %, tuloraja on 1764 € ja lisäprosentti 39 %.  Paljonko hän maksaa veroja?","Kalle saa palkkaa 1897 €/kk. Kallen veroprosentti on 18 %, tuloraja on 1764 € ja lisäprosentti 39 %.  Paljonko hänelle jää käteen verojen jälkeen?","Pankkitilillä on rahaa 3868 €. Korkoprosentti on 3 %. Kuinka paljon se tuottaa korkoa vuodessa?","Pankkitilillä on rahaa 3868 €. Korkoprosentti on 3 %. Kuinka paljon tilillä on rahaa vuoden kuluttua?","Kuinka paljon 3868 € laina kasvaa korkoa kuukaudessa, kun korkoprosentti on 3 %?","Kuinka paljon 3868 € laina kasvaa korkoa 8 kuukaudessa, kun korkoprosentti on 3 %?","Kuinka paljon 3868 € laina kasvaa korkoa 142 päivässä, kun korkoprosentti on 3 %?","Kuinka monta päivää 3868 € lainan pitää kasvaa korkoa, jotta korko olisi 45,14 €. Korkoprosentti on 3 %?","Mikä on lainan korkoprosentin oltava, jotta 3868 € laina kasvaa korkoa 45,14 €, kun laina-aika on 142 päivää?","Kuinka paljon on lainan pääoma, kun 142 päivässä kertyy korkoa 45,14 € korkoprosentin ollessa 3 %.","Pankkitilillä on rahaa 3868 €. Korkoprosentti on 3 %. Kuinka paljon tilillä on rahaa 1 vuoden kuluttua, kun korko lisätään tilille aina vuoden kuluttua?","Pankkitilillä on rahaa 3868 €. Korkoprosentti on 3 %. Kuinka paljon korkoa kertyy 1 vuodessa kuluttua, kun korko lisätään tilille aina vuoden kuluttua?","Kuinka paljon on 10 promillea luvusta 41?","Kuinka monta promillea luku 0,41 on luvusta 41?"]
["4.","183 euron tuotteen hinta nousee 141 €. Montako prosenttia hinta nousee?",null,null,null,null,null,null,null,null,null,null,null,4,21,183,10,17,77,46,37,19,70,3227,2329,22,22,3.4,3,2734,8,271,75,null,2,11,15,12,42,63,79,31,55,43,2286,1928,23,19,4,4,3977,9,50,51,null,2,"Kuinka monta prosenttia luku 38 on luvusta 183?","183 euron tuotteesta saa 18 € alennuksen. Montako prosenttia alennus on?","183 euron tuotteen uusi hinta on 165 €. Montako prosenttia alennus on?","183 euron tuotteen hinta nousee 141 €. Montako prosenttia hinta nousee?","183 euron tuotteen uusi hinta on 324 €. Montako prosenttia hinta nousee?","Kuinka paljon on 21 % luvusta 183?","183 euron tuotteesta saa 10 % alennuksen. Paljonko on alennus?","183 euron tuotteesta saa 10 % alennuksen. Paljonko on uusi hinta?","183 euron tuotteen hinta nousee 77 %. Paljonko on uusi hinta?","183 euron tuotteesta saa 10 % alennuksen. Jonkun ajan kuluttua hinta nousee 77 %. Kuinka monta prosenttia hinnan muutos oli kaiken kaikkiaan?","183 euron tuotteen hinta nousee 77 %.Jonkun ajan kuluttua hinta laskee 10 %. Kuinka monta prosenttia hinnan muutos oli kaiken kaikkiaan?","183 euron tuotteesta saa 10 % alennuksen. Jonkun ajan kuluttua hinta laskee vielä 17 %. Kuinka monta prosenttia hinnan lasku oli kaiken kaikkiaan?","183 euron tuotteen hinta nousee 77 %.Jonkun ajan kuluttua hinta nousee vielä 46 %. Kuinka monta prosenttia hinnan nousu oli kaiken kaikkiaan?","Kuinka monta prosenttia luku 251 on suurempi kuin 183","Kuinka monta prosenttia luku 115 on pienempi kuin 183?","Prosenttiluku A on aluksi 19 %. Myöhemmin se on 70 %. Kuinka monta prosenttiyksikköä muutos on?","Herra X:n kannatus edellisissä vaaleissa oli 19 %. Nyt se on 70 %. Kuinka monta prosenttiyksikköä muutos on?","21 prosenttia eräästä luvusta on 183, mikä on tämä luku?","Tuotteesta saadaan 10 % alennus. Alennus on 18,3 €. Mikä on alkuperäinen hinta?","Tuotteen hinta nousee 77 %. Hinnannousu on 140,91 €. Mikä on alkuperäinen hinta?","Tuotteesta saadaan 10 % alennus. Hinta alennuksen jälkeen on 164,7 €. Mikä on alkuperäinen hinta?","Tuotteen hinta nousee 77 %. Uusi hinta on 323,91 €. Mikä on alkuperäinen hinta?","Kalle saa palkkaa 3227 €. Paljonko hän maksaa veroja, kun hänen veroprosenttinsa on 22 %?","Kalle saa palkkaa 3227 €. Paljonko hänelle jää palkasta verojen jälkeen, kun hänen veroprosenttinsa on 22 %?","Kalle saa palkkaa 3227 €/kk. Kallen veroprosentti on 22 %, tuloraja on 2329 € ja lisäprosentti 44 %.  Paljonko hän maksaa veroja?","Kalle saa palkkaa 3227 €/kk. Kallen veroprosentti on 22 %, tuloraja on 2329 € ja lisäprosentti 44 %.  Paljonko hänelle jää käteen verojen jälkeen?","Pankkitilillä on rahaa 2734 €. Korkoprosentti on 3,4 %. Kuinka paljon se tuottaa korkoa vuodessa?","Pankkitilillä on rahaa 2734 €. Korkoprosentti on 3,4 %. Kuinka paljon tilillä on rahaa vuoden kuluttua?","Kuinka paljon 2734 € laina kasvaa korkoa kuukaudessa, kun korkoprosentti on 3,4 %?","Kuinka paljon 2734 € laina kasvaa korkoa 8 kuukaudessa, kun korkoprosentti on 3,4 %?","Kuinka paljon 2734 € laina kasvaa korkoa 271 päivässä, kun korkoprosentti on 3,4 %?","Kuinka monta päivää 2734 € lainan pitää kasvaa korkoa, jotta korko olisi 69,02 €. Korkoprosentti on 3,4 %?","Mikä on lainan korkoprosentin oltava, jotta 2734 € laina kasvaa korkoa 69,02 €, kun laina-aika on 271 päivää?","Kuinka paljon on lainan pääoma, kun 271 päivässä kertyy korkoa 69,02 € korkoprosentin ollessa 3,4 %.","Pankkitilillä on rahaa 2734 €. Korkoprosentti on 3,4 %. Kuinka paljon tilillä on rahaa 3 vuoden kuluttua, kun korko lisätään tilille aina vuoden kuluttua?","Pankkitilillä on rahaa 2734 €. Korkoprosentti on 3,4 %. Kuinka paljon korkoa kertyy 3 vuodessa kuluttua, kun korko lisätään tilille aina vuoden kuluttua?","Kuinka paljon on 75 promillea luvusta 183?","Kuinka monta promillea luku 13,73 on luvusta 183?"]
["5.","82 euron tuotteen uusi hinta on 61 €. Montako prosenttia alennus on?",null,null,null,null,null,null,null,null,null,null,null,3,83,82,25,17,36,65,41,12,54,2745,2972,28,21,3.3,1,1592,8,318,95,null,4,98,199,24,53,84,9,56,62,67,3008,2384,18,22,2.5,2,3279,6,212,46,null,4,"Kuinka monta prosenttia luku 68 on luvusta 82?","82 euron tuotteesta saa 21 € alennuksen. Montako prosenttia alennus on?","82 euron tuotteen uusi hinta on 61 €. Montako prosenttia alennus on?","82 euron tuotteen hinta nousee 30 €. Montako prosenttia hinta nousee?","82 euron tuotteen uusi hinta on 112 €. Montako prosenttia hinta nousee?","Kuinka paljon on 83 % luvusta 82?","82 euron tuotteesta saa 25 % alennuksen. Paljonko on alennus?","82 euron tuotteesta saa 25 % alennuksen. Paljonko on uusi hinta?","82 euron tuotteen hinta nousee 36 %. Paljonko on uusi hinta?","82 euron tuotteesta saa 25 % alennuksen. Jonkun ajan kuluttua hinta nousee 36 %. Kuinka monta prosenttia hinnan muutos oli kaiken kaikkiaan?","82 euron tuotteen hinta nousee 36 %.Jonkun ajan kuluttua hinta laskee 25 %. Kuinka monta prosenttia hinnan muutos oli kaiken kaikkiaan?","82 euron tuotteesta saa 25 % alennuksen. Jonkun ajan kuluttua hinta laskee vielä 17 %. Kuinka monta prosenttia hinnan lasku oli kaiken kaikkiaan?","82 euron tuotteen hinta nousee 36 %.Jonkun ajan kuluttua hinta nousee vielä 65 %. Kuinka monta prosenttia hinnan nousu oli kaiken kaikkiaan?","Kuinka monta prosenttia luku 116 on suurempi kuin 82","Kuinka monta prosenttia luku 48 on pienempi kuin 82?","Prosenttiluku A on aluksi 12 %. Myöhemmin se on 54 %. Kuinka monta prosenttiyksikköä muutos on?","Herra X:n kannatus edellisissä vaaleissa oli 12 %. Nyt se on 54 %. Kuinka monta prosenttiyksikköä muutos on?","83 prosenttia eräästä luvusta on 82, mikä on tämä luku?","Tuotteesta saadaan 25 % alennus. Alennus on 20,5 €. Mikä on alkuperäinen hinta?","Tuotteen hinta nousee 36 %. Hinnannousu on 29,52 €. Mikä on alkuperäinen hinta?","Tuotteesta saadaan 25 % alennus. Hinta alennuksen jälkeen on 61,5 €. Mikä on alkuperäinen hinta?","Tuotteen hinta nousee 36 %. Uusi hinta on 111,52 €. Mikä on alkuperäinen hinta?","Kalle saa palkkaa 2745 €. Paljonko hän maksaa veroja, kun hänen veroprosenttinsa on 28 %?","Kalle saa palkkaa 2745 €. Paljonko hänelle jää palkasta verojen jälkeen, kun hänen veroprosenttinsa on 28 %?","Kalle saa palkkaa 2745 €/kk. Kallen veroprosentti on 28 %, tuloraja on 2972 € ja lisäprosentti 49 %.  Paljonko hän maksaa veroja?","Kalle saa palkkaa 2745 €/kk. Kallen veroprosentti on 28 %, tuloraja on 2972 € ja lisäprosentti 49 %.  Paljonko hänelle jää käteen verojen jälkeen?","Pankkitilillä on rahaa 1592 €. Korkoprosentti on 3,3 %. Kuinka paljon se tuottaa korkoa vuodessa?","Pankkitilillä on rahaa 1592 €. Korkoprosentti on 3,3 %. Kuinka paljon tilillä on rahaa vuoden kuluttua?","Kuinka paljon 1592 € laina kasvaa korkoa kuukaudessa, kun korkoprosentti on 3,3 %?","Kuinka paljon 1592 € laina kasvaa korkoa 8 kuukaudessa, kun korkoprosentti on 3,3 %?","Kuinka paljon 1592 € laina kasvaa korkoa 318 päivässä, kun korkoprosentti on 3,3 %?","Kuinka monta päivää 1592 € lainan pitää kasvaa korkoa, jotta korko olisi 45,77 €. Korkoprosentti on 3,3 %?","Mikä on lainan korkoprosentin oltava, jotta 1592 € laina kasvaa korkoa 45,77 €, kun laina-aika on 318 päivää?","Kuinka paljon on lainan pääoma, kun 318 päivässä kertyy korkoa 45,77 € korkoprosentin ollessa 3,3 %.","Pankkitilillä on rahaa 1592 €. Korkoprosentti on 3,3 %. Kuinka paljon tilillä on rahaa 1 vuoden kuluttua, kun korko lisätään tilille aina vuoden kuluttua?","Pankkitilillä on rahaa 1592 €. Korkoprosentti on 3,3 %. Kuinka paljon korkoa kertyy 1 vuodessa kuluttua, kun korko lisätään tilille aina vuoden kuluttua?","Kuinka paljon on 95 promillea luvusta 82?","Kuinka monta promillea luku 7,79 on luvusta 82?"]
["6.","132 euron tuotteen uusi hinta on 251 €. Montako prosenttia hinta nousee?",null,null,null,null,null,null,null,null,null,null,null,5,29,132,44,40,90,34,17,16,2,2058,2226,15,24,4.2,1,413,5,323,3,null,2,36,22,31,26,31,27,67,44,71,2703,1630,16,18,4.5,3,585,11,17,35,null,2,"Kuinka monta prosenttia luku 38 on luvusta 132?","132 euron tuotteesta saa 58 € alennuksen. Montako prosenttia alennus on?","132 euron tuotteen uusi hinta on 74 €. Montako prosenttia alennus on?","132 euron tuotteen hinta nousee 119 €. Montako prosenttia hinta nousee?","132 euron tuotteen uusi hinta on 251 €. Montako prosenttia hinta nousee?","Kuinka paljon on 29 % luvusta 132?","132 euron tuotteesta saa 44 % alennuksen. Paljonko on alennus?","132 euron tuotteesta saa 44 % alennuksen. Paljonko on uusi hinta?","132 euron tuotteen hinta nousee 90 %. Paljonko on uusi hinta?","132 euron tuotteesta saa 44 % alennuksen. Jonkun ajan kuluttua hinta nousee 90 %. Kuinka monta prosenttia hinnan muutos oli kaiken kaikkiaan?","132 euron tuotteen hinta nousee 90 %.Jonkun ajan kuluttua hinta laskee 44 %. Kuinka monta prosenttia hinnan muutos oli kaiken kaikkiaan?","132 euron tuotteesta saa 44 % alennuksen. Jonkun ajan kuluttua hinta laskee vielä 40 %. Kuinka monta prosenttia hinnan lasku oli kaiken kaikkiaan?","132 euron tuotteen hinta nousee 90 %.Jonkun ajan kuluttua hinta nousee vielä 34 %. Kuinka monta prosenttia hinnan nousu oli kaiken kaikkiaan?","Kuinka monta prosenttia luku 154 on suurempi kuin 132","Kuinka monta prosenttia luku 110 on pienempi kuin 132?","Prosenttiluku A on aluksi 16 %. Myöhemmin se on 2 %. Kuinka monta prosenttiyksikköä muutos on?","Herra X:n kannatus edellisissä vaaleissa oli 16 %. Nyt se on 2 %. Kuinka monta prosenttiyksikköä muutos on?","29 prosenttia eräästä luvusta on 132, mikä on tämä luku?","Tuotteesta saadaan 44 % alennus. Alennus on 58,08 €. Mikä on alkuperäinen hinta?","Tuotteen hinta nousee 90 %. Hinnannousu on 118,8 €. Mikä on alkuperäinen hinta?","Tuotteesta saadaan 44 % alennus. Hinta alennuksen jälkeen on 73,92 €. Mikä on alkuperäinen hinta?","Tuotteen hinta nousee 90 %. Uusi hinta on 250,8 €. Mikä on alkuperäinen hinta?","Kalle saa palkkaa 2058 €. Paljonko hän maksaa veroja, kun hänen veroprosenttinsa on 15 %?","Kalle saa palkkaa 2058 €. Paljonko hänelle jää palkasta verojen jälkeen, kun hänen veroprosenttinsa on 15 %?","Kalle saa palkkaa 2058 €/kk. Kallen veroprosentti on 15 %, tuloraja on 2226 € ja lisäprosentti 39 %.  Paljonko hän maksaa veroja?","Kalle saa palkkaa 2058 €/kk. Kallen veroprosentti on 15 %, tuloraja on 2226 € ja lisäprosentti 39 %.  Paljonko hänelle jää käteen verojen jälkeen?","Pankkitilillä on rahaa 413 €. Korkoprosentti on 4,2 %. Kuinka paljon se tuottaa korkoa vuodessa?","Pankkitilillä on rahaa 413 €. Korkoprosentti on 4,2 %. Kuinka paljon tilillä on rahaa vuoden kuluttua?","Kuinka paljon 413 € laina kasvaa korkoa kuukaudessa, kun korkoprosentti on 4,2 %?","Kuinka paljon 413 € laina kasvaa korkoa 5 kuukaudessa, kun korkoprosentti on 4,2 %?","Kuinka paljon 413 € laina kasvaa korkoa 323 päivässä, kun korkoprosentti on 4,2 %?","Kuinka monta päivää 413 € lainan pitää kasvaa korkoa, jotta korko olisi 15,35 €. Korkoprosentti on 4,2 %?","Mikä on lainan korkoprosentin oltava, jotta 413 € laina kasvaa korkoa 15,35 €, kun laina-aika on 323 päivää?","Kuinka paljon on lainan pääoma, kun 323 päivässä kertyy korkoa 15,35 € korkoprosentin ollessa 4,2 %.","Pankkitilillä on rahaa 413 €. Korkoprosentti on 4,2 %. Kuinka paljon tilillä on rahaa 1 vuoden kuluttua, kun korko lisätään tilille aina vuoden kuluttua?","Pankkitilillä on rahaa 413 €. Korkoprosentti on 4,2 %. Kuinka paljon korkoa kertyy 1 vuodessa kuluttua, kun korko lisätään tilille aina vuoden kuluttua?","Kuinka paljon on 3 promillea luvusta 132?","Kuinka monta promillea luku 0,4 on luvusta 132?"]
["7.","166 euron tuotteen uusi hinta on 101 €. Montako prosenttia alennus on?",null,null,null,null,null,null,null,null,null,null,null,3,83,166,39,42,96,91,17,16,8,1708,1637,25,23,3.9,5,543,3,118,89,null,2,90,189,27,42,37,49,80,93,35,2871,1696,15,24,1.2,3,3229,9,181,66,null,2,"Kuinka monta prosenttia luku 138 on luvusta 166?","166 euron tuotteesta saa 65 € alennuksen. Montako prosenttia alennus on?","166 euron tuotteen uusi hinta on 101 €. Montako prosenttia alennus on?","166 euron tuotteen hinta nousee 159 €. Montako prosenttia hinta nousee?","166 euron tuotteen uusi hinta on 325 €. Montako prosenttia hinta nousee?","Kuinka paljon on 83 % luvusta 166?","166 euron tuotteesta saa 39 % alennuksen. Paljonko on alennus?","166 euron tuotteesta saa 39 % alennuksen. Paljonko on uusi hinta?","166 euron tuotteen hinta nousee 96 %. Paljonko on uusi hinta?","166 euron tuotteesta saa 39 % alennuksen. Jonkun ajan kuluttua hinta nousee 96 %. Kuinka monta prosenttia hinnan muutos oli kaiken kaikkiaan?","166 euron tuotteen hinta nousee 96 %.Jonkun ajan kuluttua hinta laskee 39 %. Kuinka monta prosenttia hinnan muutos oli kaiken kaikkiaan?","166 euron tuotteesta saa 39 % alennuksen. Jonkun ajan kuluttua hinta laskee vielä 42 %. Kuinka monta prosenttia hinnan lasku oli kaiken kaikkiaan?","166 euron tuotteen hinta nousee 96 %.Jonkun ajan kuluttua hinta nousee vielä 91 %. Kuinka monta prosenttia hinnan nousu oli kaiken kaikkiaan?","Kuinka monta prosenttia luku 194 on suurempi kuin 166","Kuinka monta prosenttia luku 138 on pienempi kuin 166?","Prosenttiluku A on aluksi 16 %. Myöhemmin se on 8 %. Kuinka monta prosenttiyksikköä muutos on?","Herra X:n kannatus edellisissä vaaleissa oli 16 %. Nyt se on 8 %. Kuinka monta prosenttiyksikköä muutos on?","83 prosenttia eräästä luvusta on 166, mikä on tämä luku?","Tuotteesta saadaan 39 % alennus. Alennus on 64,74 €. Mikä on alkuperäinen hinta?","Tuotteen hinta nousee 96 %. Hinnannousu on 159,36 €. Mikä on alkuperäinen hinta?","Tuotteesta saadaan 39 % alennus. Hinta alennuksen jälkeen on 101,26 €. Mikä on alkuperäinen hinta?","Tuotteen hinta nousee 96 %. Uusi hinta on 325,36 €. Mikä on alkuperäinen hinta?","Kalle saa palkkaa 1708 €. Paljonko hän maksaa veroja, kun hänen veroprosenttinsa on 25 %?","Kalle saa palkkaa 1708 €. Paljonko hänelle jää palkasta verojen jälkeen, kun hänen veroprosenttinsa on 25 %?","Kalle saa palkkaa 1708 €/kk. Kallen veroprosentti on 25 %, tuloraja on 1637 € ja lisäprosentti 48 %.  Paljonko hän maksaa veroja?","Kalle saa palkkaa 1708 €/kk. Kallen veroprosentti on 25 %, tuloraja on 1637 € ja lisäprosentti 48 %.  Paljonko hänelle jää käteen verojen jälkeen?","Pankkitilillä on rahaa 543 €. Korkoprosentti on 3,9 %. Kuinka paljon se tuottaa korkoa vuodessa?","Pankkitilillä on rahaa 543 €. Korkoprosentti on 3,9 %. Kuinka paljon tilillä on rahaa vuoden kuluttua?","Kuinka paljon 543 € laina kasvaa korkoa kuukaudessa, kun korkoprosentti on 3,9 %?","Kuinka paljon 543 € laina kasvaa korkoa 3 kuukaudessa, kun korkoprosentti on 3,9 %?","Kuinka paljon 543 € laina kasvaa korkoa 118 päivässä, kun korkoprosentti on 3,9 %?","Kuinka monta päivää 543 € lainan pitää kasvaa korkoa, jotta korko olisi 6,85 €. Korkoprosentti on 3,9 %?","Mikä on lainan korkoprosentin oltava, jotta 543 € laina kasvaa korkoa 6,85 €, kun laina-aika on 118 päivää?","Kuinka paljon on lainan pääoma, kun 118 päivässä kertyy korkoa 6,85 € korkoprosentin ollessa 3,9 %.","Pankkitilillä on rahaa 543 €. Korkoprosentti on 3,9 %. Kuinka paljon tilillä on rahaa 5 vuoden kuluttua, kun korko lisätään tilille aina vuoden kuluttua?","Pankkitilillä on rahaa 543 €. Korkoprosentti on 3,9 %. Kuinka paljon korkoa kertyy 5 vuodessa kuluttua, kun korko lisätään tilille aina vuoden kuluttua?","Kuinka paljon on 89 promillea luvusta 166?","Kuinka monta promillea luku 14,77 on luvusta 166?"]
["8.","150 euron tuotteen hinta nousee 90 €. Montako prosenttia hinta nousee?",null,null,null,null,null,null,null,null,null,null,null,4,11,150,2,46,60,96,62,7,16,2863,2953,17,20,3.4,4,2189,8,252,79,null,5,94,47,16,15,13,25,15,87,17,3369,1545,28,20,2.5,3,606,7,105,12,null,5,"Kuinka monta prosenttia luku 17 on luvusta 150?","150 euron tuotteesta saa 3 € alennuksen. Montako prosenttia alennus on?","150 euron tuotteen uusi hinta on 147 €. Montako prosenttia alennus on?","150 euron tuotteen hinta nousee 90 €. Montako prosenttia hinta nousee?","150 euron tuotteen uusi hinta on 240 €. Montako prosenttia hinta nousee?","Kuinka paljon on 11 % luvusta 150?","150 euron tuotteesta saa 2 % alennuksen. Paljonko on alennus?","150 euron tuotteesta saa 2 % alennuksen. Paljonko on uusi hinta?","150 euron tuotteen hinta nousee 60 %. Paljonko on uusi hinta?","150 euron tuotteesta saa 2 % alennuksen. Jonkun ajan kuluttua hinta nousee 60 %. Kuinka monta prosenttia hinnan muutos oli kaiken kaikkiaan?","150 euron tuotteen hinta nousee 60 %.Jonkun ajan kuluttua hinta laskee 2 %. Kuinka monta prosenttia hinnan muutos oli kaiken kaikkiaan?","150 euron tuotteesta saa 2 % alennuksen. Jonkun ajan kuluttua hinta laskee vielä 46 %. Kuinka monta prosenttia hinnan lasku oli kaiken kaikkiaan?","150 euron tuotteen hinta nousee 60 %.Jonkun ajan kuluttua hinta nousee vielä 96 %. Kuinka monta prosenttia hinnan nousu oli kaiken kaikkiaan?","Kuinka monta prosenttia luku 243 on suurempi kuin 150","Kuinka monta prosenttia luku 57 on pienempi kuin 150?","Prosenttiluku A on aluksi 7 %. Myöhemmin se on 16 %. Kuinka monta prosenttiyksikköä muutos on?","Herra X:n kannatus edellisissä vaaleissa oli 7 %. Nyt se on 16 %. Kuinka monta prosenttiyksikköä muutos on?","11 prosenttia eräästä luvusta on 150, mikä on tämä luku?","Tuotteesta saadaan 2 % alennus. Alennus on 3 €. Mikä on alkuperäinen hinta?","Tuotteen hinta nousee 60 %. Hinnannousu on 90 €. Mikä on alkuperäinen hinta?","Tuotteesta saadaan 2 % alennus. Hinta alennuksen jälkeen on 147 €. Mikä on alkuperäinen hinta?","Tuotteen hinta nousee 60 %. Uusi hinta on 240 €. Mikä on alkuperäinen hinta?","Kalle saa palkkaa 2863 €. Paljonko hän maksaa veroja, kun hänen veroprosenttinsa on 17 %?","Kalle saa palkkaa 2863 €. Paljonko hänelle jää palkasta verojen jälkeen, kun hänen veroprosenttinsa on 17 %?","Kalle saa palkkaa 2863 €/kk. Kallen veroprosentti on 17 %, tuloraja on 2953 € ja lisäprosentti 37 %.  Paljonko hän maksaa veroja?","Kalle saa palkkaa 2863 €/kk. Kallen veroprosentti on 17 %, tuloraja on 2953 € ja lisäprosentti 37 %.  Paljonko hänelle jää käteen verojen jälkeen?","Pankkitilillä on rahaa 2189 €. Korkoprosentti on 3,4 %. Kuinka paljon se tuottaa korkoa vuodessa?","Pankkitilillä on rahaa 2189 €. Korkoprosentti on 3,4 %. Kuinka paljon tilillä on rahaa vuoden kuluttua?","Kuinka paljon 2189 € laina kasvaa korkoa kuukaudessa, kun korkoprosentti on 3,4 %?","Kuinka paljon 2189 € laina kasvaa korkoa 8 kuukaudessa, kun korkoprosentti on 3,4 %?","Kuinka paljon 2189 € laina kasvaa korkoa 252 päivässä, kun korkoprosentti on 3,4 %?","Kuinka monta päivää 2189 € lainan pitää kasvaa korkoa, jotta korko olisi 51,38 €. Korkoprosentti on 3,4 %?","Mikä on lainan korkoprosentin oltava, jotta 2189 € laina kasvaa korkoa 51,38 €, kun laina-aika on 252 päivää?","Kuinka paljon on lainan pääoma, kun 252 päivässä kertyy korkoa 51,38 € korkoprosentin ollessa 3,4 %.","Pankkitilillä on rahaa 2189 €. Korkoprosentti on 3,4 %. Kuinka paljon tilillä on rahaa 4 vuoden kuluttua, kun korko lisätään tilille aina vuoden kuluttua?","Pankkitilillä on rahaa 2189 €. Korkoprosentti on 3,4 %. Kuinka paljon korkoa kertyy 4 vuodessa kuluttua, kun korko lisätään tilille aina vuoden kuluttua?","Kuinka paljon on 79 promillea luvusta 150?","Kuinka monta promillea luku 11,85 on luvusta 150?"]
["9.","32 euron tuotteesta saa 19 € alennuksen. Montako prosenttia alennus on?",null,null,null,null,null,null,null,null,null,null,null,2,1,32,58,3,51,52,49,74,77,2103,2695,20,19,1.7,4,116,6,201,58,null,1,3,42,25,50,92,50,46,82,12,1969,2743,23,15,0.8,3,4487,3,123,32,null,1,"Kuinka monta prosenttia luku 0 on luvusta 32?","32 euron tuotteesta saa 19 € alennuksen. Montako prosenttia alennus on?","32 euron tuotteen uusi hinta on 13 €. Montako prosenttia alennus on?","32 euron tuotteen hinta nousee 16 €. Montako prosenttia hinta nousee?","32 euron tuotteen uusi hinta on 48 €. Montako prosenttia hinta nousee?","Kuinka paljon on 1 % luvusta 32?","32 euron tuotteesta saa 58 % alennuksen. Paljonko on alennus?","32 euron tuotteesta saa 58 % alennuksen. Paljonko on uusi hinta?","32 euron tuotteen hinta nousee 51 %. Paljonko on uusi hinta?","32 euron tuotteesta saa 58 % alennuksen. Jonkun ajan kuluttua hinta nousee 51 %. Kuinka monta prosenttia hinnan muutos oli kaiken kaikkiaan?","32 euron tuotteen hinta nousee 51 %.Jonkun ajan kuluttua hinta laskee 58 %. Kuinka monta prosenttia hinnan muutos oli kaiken kaikkiaan?","32 euron tuotteesta saa 58 % alennuksen. Jonkun ajan kuluttua hinta laskee vielä 3 %. Kuinka monta prosenttia hinnan lasku oli kaiken kaikkiaan?","32 euron tuotteen hinta nousee 51 %.Jonkun ajan kuluttua hinta nousee vielä 52 %. Kuinka monta prosenttia hinnan nousu oli kaiken kaikkiaan?","Kuinka monta prosenttia luku 48 on suurempi kuin 32","Kuinka monta prosenttia luku 16 on pienempi kuin 32?","Prosenttiluku A on aluksi 74 %. Myöhemmin se on 77 %. Kuinka monta prosenttiyksikköä muutos on?","Herra X:n kannatus edellisissä vaaleissa oli 74 %. Nyt se on 77 %. Kuinka monta prosenttiyksikköä muutos on?","1 prosenttia eräästä luvusta on 32, mikä on tämä luku?","Tuotteesta saadaan 58 % alennus. Alennus on 18,56 €. Mikä on alkuperäinen hinta?","Tuotteen hinta nousee 51 %. Hinnannousu on 16,32 €. Mikä on alkuperäinen hinta?","Tuotteesta saadaan 58 % alennus. Hinta alennuksen jälkeen on 13,44 €. Mikä on alkuperäinen hinta?","Tuotteen hinta nousee 51 %. Uusi hinta on 48,32 €. Mikä on alkuperäinen hinta?","Kalle saa palkkaa 2103 €. Paljonko hän maksaa veroja, kun hänen veroprosenttinsa on 20 %?","Kalle saa palkkaa 2103 €. Paljonko hänelle jää palkasta verojen jälkeen, kun hänen veroprosenttinsa on 20 %?","Kalle saa palkkaa 2103 €/kk. Kallen veroprosentti on 20 %, tuloraja on 2695 € ja lisäprosentti 39 %.  Paljonko hän maksaa veroja?","Kalle saa palkkaa 2103 €/kk. Kallen veroprosentti on 20 %, tuloraja on 2695 € ja lisäprosentti 39 %.  Paljonko hänelle jää käteen verojen jälkeen?","Pankkitilillä on rahaa 116 €. Korkoprosentti on 1,7 %. Kuinka paljon se tuottaa korkoa vuodessa?","Pankkitilillä on rahaa 116 €. Korkoprosentti on 1,7 %. Kuinka paljon tilillä on rahaa vuoden kuluttua?","Kuinka paljon 116 € laina kasvaa korkoa kuukaudessa, kun korkoprosentti on 1,7 %?","Kuinka paljon 116 € laina kasvaa korkoa 6 kuukaudessa, kun korkoprosentti on 1,7 %?","Kuinka paljon 116 € laina kasvaa korkoa 201 päivässä, kun korkoprosentti on 1,7 %?","Kuinka monta päivää 116 € lainan pitää kasvaa korkoa, jotta korko olisi 1,09 €. Korkoprosentti on 1,7 %?","Mikä on lainan korkoprosentin oltava, jotta 116 € laina kasvaa korkoa 1,09 €, kun laina-aika on 201 päivää?","Kuinka paljon on lainan pääoma, kun 201 päivässä kertyy korkoa 1,09 € korkoprosentin ollessa 1,7 %.","Pankkitilillä on rahaa 116 €. Korkoprosentti on 1,7 %. Kuinka paljon tilillä on rahaa 4 vuoden kuluttua, kun korko lisätään tilille aina vuoden kuluttua?","Pankkitilillä on rahaa 116 €. Korkoprosentti on 1,7 %. Kuinka paljon korkoa kertyy 4 vuodessa kuluttua, kun korko lisätään tilille aina vuoden kuluttua?","Kuinka paljon on 58 promillea luvusta 32?","Kuinka monta promillea luku 1,86 on luvusta 32?"]
["10.","165 euron tuotteen uusi hinta on 112 €. Montako prosenttia alennus on?",null,null,null,null,null,null,null,null,null,null,null,3,7,165,32,54,49,85,23,91,47,3781,2205,15,21,3.3,1,2990,8,52,72,null,5,88,26,51,8,17,86,80,86,90,3974,1818,19,16,4.9000000000000004,2,1067,3,136,52,null,5,"Kuinka monta prosenttia luku 12 on luvusta 165?","165 euron tuotteesta saa 53 € alennuksen. Montako prosenttia alennus on?","165 euron tuotteen uusi hinta on 112 €. Montako prosenttia alennus on?","165 euron tuotteen hinta nousee 81 €. Montako prosenttia hinta nousee?","165 euron tuotteen uusi hinta on 246 €. Montako prosenttia hinta nousee?","Kuinka paljon on 7 % luvusta 165?","165 euron tuotteesta saa 32 % alennuksen. Paljonko on alennus?","165 euron tuotteesta saa 32 % alennuksen. Paljonko on uusi hinta?","165 euron tuotteen hinta nousee 49 %. Paljonko on uusi hinta?","165 euron tuotteesta saa 32 % alennuksen. Jonkun ajan kuluttua hinta nousee 49 %. Kuinka monta prosenttia hinnan muutos oli kaiken kaikkiaan?","165 euron tuotteen hinta nousee 49 %.Jonkun ajan kuluttua hinta laskee 32 %. Kuinka monta prosenttia hinnan muutos oli kaiken kaikkiaan?","165 euron tuotteesta saa 32 % alennuksen. Jonkun ajan kuluttua hinta laskee vielä 54 %. Kuinka monta prosenttia hinnan lasku oli kaiken kaikkiaan?","165 euron tuotteen hinta nousee 49 %.Jonkun ajan kuluttua hinta nousee vielä 85 %. Kuinka monta prosenttia hinnan nousu oli kaiken kaikkiaan?","Kuinka monta prosenttia luku 203 on suurempi kuin 165","Kuinka monta prosenttia luku 127 on pienempi kuin 165?","Prosenttiluku A on aluksi 91 %. Myöhemmin se on 47 %. Kuinka monta prosenttiyksikköä muutos on?","Herra X:n kannatus edellisissä vaaleissa oli 91 %. Nyt se on 47 %. Kuinka monta prosenttiyksikköä muutos on?","7 prosenttia eräästä luvusta on 165, mikä on tämä luku?","Tuotteesta saadaan 32 % alennus. Alennus on 52,8 €. Mikä on alkuperäinen hinta?","Tuotteen hinta nousee 49 %. Hinnannousu on 80,85 €. Mikä on alkuperäinen hinta?","Tuotteesta saadaan 32 % alennus. Hinta alennuksen jälkeen on 112,2 €. Mikä on alkuperäinen hinta?","Tuotteen hinta nousee 49 %. Uusi hinta on 245,85 €. Mikä on alkuperäinen hinta?","Kalle saa palkkaa 3781 €. Paljonko hän maksaa veroja, kun hänen veroprosenttinsa on 15 %?","Kalle saa palkkaa 3781 €. Paljonko hänelle jää palkasta verojen jälkeen, kun hänen veroprosenttinsa on 15 %?","Kalle saa palkkaa 3781 €/kk. Kallen veroprosentti on 15 %, tuloraja on 2205 € ja lisäprosentti 36 %.  Paljonko hän maksaa veroja?","Kalle saa palkkaa 3781 €/kk. Kallen veroprosentti on 15 %, tuloraja on 2205 € ja lisäprosentti 36 %.  Paljonko hänelle jää käteen verojen jälkeen?","Pankkitilillä on rahaa 2990 €. Korkoprosentti on 3,3 %. Kuinka paljon se tuottaa korkoa vuodessa?","Pankkitilillä on rahaa 2990 €. Korkoprosentti on 3,3 %. Kuinka paljon tilillä on rahaa vuoden kuluttua?","Kuinka paljon 2990 € laina kasvaa korkoa kuukaudessa, kun korkoprosentti on 3,3 %?","Kuinka paljon 2990 € laina kasvaa korkoa 8 kuukaudessa, kun korkoprosentti on 3,3 %?","Kuinka paljon 2990 € laina kasvaa korkoa 52 päivässä, kun korkoprosentti on 3,3 %?","Kuinka monta päivää 2990 € lainan pitää kasvaa korkoa, jotta korko olisi 14,06 €. Korkoprosentti on 3,3 %?","Mikä on lainan korkoprosentin oltava, jotta 2990 € laina kasvaa korkoa 14,06 €, kun laina-aika on 52 päivää?","Kuinka paljon on lainan pääoma, kun 52 päivässä kertyy korkoa 14,06 € korkoprosentin ollessa 3,3 %.","Pankkitilillä on rahaa 2990 €. Korkoprosentti on 3,3 %. Kuinka paljon tilillä on rahaa 1 vuoden kuluttua, kun korko lisätään tilille aina vuoden kuluttua?","Pankkitilillä on rahaa 2990 €. Korkoprosentti on 3,3 %. Kuinka paljon korkoa kertyy 1 vuodessa kuluttua, kun korko lisätään tilille aina vuoden kuluttua?","Kuinka paljon on 72 promillea luvusta 165?","Kuinka monta promillea luku 11,88 on luvusta 165?"]
["11.","123 euron tuotteen hinta nousee 29 %. Paljonko on uusi hinta?",null,null,null,null,null,null,null,null,null,null,"Sivu 2",9,27,123,23,31,29,76,38,91,37,3529,2187,28,18,3,9,91,8,104,120,null,{"$f":"INDEX($AN$5:$AN$42,INDEX($AP$5:$AP$42,BD57,))","v":7},{"$f":"RANDBETWEEN($B$8,$C$8)","v":100},{"$f":"RANDBETWEEN($D$8,$E$8)","v":81},{"$f":"RANDBETWEEN($B$13,$C$13)","v":52},47,{"$f":"RANDBETWEEN($D$13,$E$13)","v":37},94,{"$f":"RANDBETWEEN($F$13,$G$13)","v":49},{"$f":"RANDBETWEEN($B$18,$C$18)","v":18},{"$f":"RANDBETWEEN($B$18,$C$18)","v":18},{"$f":"RANDBETWEEN($F$18,$G$18)","v":3728},{"$f":"RANDBETWEEN($B$23,$C$23)","v":2715},{"$f":"RANDBETWEEN($D$23,$E$23)","v":18},{"$f":"RANDBETWEEN($F$23,$G$23)","v":15},{"$f":"RANDBETWEEN($B$28*10,$C$28*10)/10","v":2.4},{"$f":"RANDBETWEEN($B$33,$C$33)","v":2},{"$f":"RANDBETWEEN($D$28,$E$28)","v":164},{"$f":"RANDBETWEEN($D$33,$E$33)","v":8},{"$f":"RANDBETWEEN($F$33,$G$33)","v":60},{"$f":"RANDBETWEEN($F$8,$G$8)","v":71},null,{"$f":"RANDBETWEEN(1,$AM$42)","v":2},"Kuinka monta prosenttia luku 33 on luvusta 123?","123 euron tuotteesta saa 28 € alennuksen. Montako prosenttia alennus on?","123 euron tuotteen uusi hinta on 95 €. Montako prosenttia alennus on?","123 euron tuotteen hinta nousee 36 €. Montako prosenttia hinta nousee?","123 euron tuotteen uusi hinta on 159 €. Montako prosenttia hinta nousee?","Kuinka paljon on 27 % luvusta 123?","123 euron tuotteesta saa 23 % alennuksen. Paljonko on alennus?","123 euron tuotteesta saa 23 % alennuksen. Paljonko on uusi hinta?","123 euron tuotteen hinta nousee 29 %. Paljonko on uusi hinta?","123 euron tuotteesta saa 23 % alennuksen. Jonkun ajan kuluttua hinta nousee 29 %. Kuinka monta prosenttia hinnan muutos oli kaiken kaikkiaan?","123 euron tuotteen hinta nousee 29 %.Jonkun ajan kuluttua hinta laskee 23 %. Kuinka monta prosenttia hinnan muutos oli kaiken kaikkiaan?","123 euron tuotteesta saa 23 % alennuksen. Jonkun ajan kuluttua hinta laskee vielä 31 %. Kuinka monta prosenttia hinnan lasku oli kaiken kaikkiaan?","123 euron tuotteen hinta nousee 29 %.Jonkun ajan kuluttua hinta nousee vielä 76 %. Kuinka monta prosenttia hinnan nousu oli kaiken kaikkiaan?","Kuinka monta prosenttia luku 170 on suurempi kuin 123","Kuinka monta prosenttia luku 76 on pienempi kuin 123?","Prosenttiluku A on aluksi 91 %. Myöhemmin se on 37 %. Kuinka monta prosenttiyksikköä muutos on?","Herra X:n kannatus edellisissä vaaleissa oli 91 %. Nyt se on 37 %. Kuinka monta prosenttiyksikköä muutos on?","27 prosenttia eräästä luvusta on 123, mikä on tämä luku?","Tuotteesta saadaan 23 % alennus. Alennus on 28,29 €. Mikä on alkuperäinen hinta?","Tuotteen hinta nousee 29 %. Hinnannousu on 35,67 €. Mikä on alkuperäinen hinta?","Tuotteesta saadaan 23 % alennus. Hinta alennuksen jälkeen on 94,71 €. Mikä on alkuperäinen hinta?","Tuotteen hinta nousee 29 %. Uusi hinta on 158,67 €. Mikä on alkuperäinen hinta?","Kalle saa palkkaa 3529 €. Paljonko hän maksaa veroja, kun hänen veroprosenttinsa on 28 %?","Kalle saa palkkaa 3529 €. Paljonko hänelle jää palkasta verojen jälkeen, kun hänen veroprosenttinsa on 28 %?","Kalle saa palkkaa 3529 €/kk. Kallen veroprosentti on 28 %, tuloraja on 2187 € ja lisäprosentti 46 %.  Paljonko hän maksaa veroja?","Kalle saa palkkaa 3529 €/kk. Kallen veroprosentti on 28 %, tuloraja on 2187 € ja lisäprosentti 46 %.  Paljonko hänelle jää käteen verojen jälkeen?","Pankkitilillä on rahaa 91 €. Korkoprosentti on 3 %. Kuinka paljon se tuottaa korkoa vuodessa?","Pankkitilillä on rahaa 91 €. Korkoprosentti on 3 %. Kuinka paljon tilillä on rahaa vuoden kuluttua?","Kuinka paljon 91 € laina kasvaa korkoa kuukaudessa, kun korkoprosentti on 3 %?","Kuinka paljon 91 € laina kasvaa korkoa 8 kuukaudessa, kun korkoprosentti on 3 %?","Kuinka paljon 91 € laina kasvaa korkoa 104 päivässä, kun korkoprosentti on 3 %?","Kuinka monta päivää 91 € lainan pitää kasvaa korkoa, jotta korko olisi 0,78 €. Korkoprosentti on 3 %?","Mikä on lainan korkoprosentin oltava, jotta 91 € laina kasvaa korkoa 0,78 €, kun laina-aika on 104 päivää?","Kuinka paljon on lainan pääoma, kun 104 päivässä kertyy korkoa 0,78 € korkoprosentin ollessa 3 %.","Pankkitilillä on rahaa 91 €. Korkoprosentti on 3 %. Kuinka paljon tilillä on rahaa 9 vuoden kuluttua, kun korko lisätään tilille aina vuoden kuluttua?","Pankkitilillä on rahaa 91 €. Korkoprosentti on 3 %. Kuinka paljon korkoa kertyy 9 vuodessa kuluttua, kun korko lisätään tilille aina vuoden kuluttua?","Kuinka paljon on 120 promillea luvusta 123?","Kuinka monta promillea luku 14,76 on luvusta 123?"]
["12.","32 euron tuotteen hinta nousee 92 %. Paljonko on uusi hinta?",null,null,null,null,null,null,null,null,null,null,null,9,84,32,15,19,92,34,47,91,100,1687,2308,22,17,0.1,7,8049,2,68,20,null,7,96,14,14,5,2,66,54,{"$f":"RANDBETWEEN($B$18,$C$18)","v":100},19,2982,1881,18,19,0.6,1,4167,4,148,41,null,2,"Kuinka monta prosenttia luku 27 on luvusta 32?","32 euron tuotteesta saa 5 € alennuksen. Montako prosenttia alennus on?","32 euron tuotteen uusi hinta on 27 €. Montako prosenttia alennus on?","32 euron tuotteen hinta nousee 29 €. Montako prosenttia hinta nousee?","32 euron tuotteen uusi hinta on 61 €. Montako prosenttia hinta nousee?","Kuinka paljon on 84 % luvusta 32?","32 euron tuotteesta saa 15 % alennuksen. Paljonko on alennus?","32 euron tuotteesta saa 15 % alennuksen. Paljonko on uusi hinta?","32 euron tuotteen hinta nousee 92 %. Paljonko on uusi hinta?","32 euron tuotteesta saa 15 % alennuksen. Jonkun ajan kuluttua hinta nousee 92 %. Kuinka monta prosenttia hinnan muutos oli kaiken kaikkiaan?","32 euron tuotteen hinta nousee 92 %.Jonkun ajan kuluttua hinta laskee 15 %. Kuinka monta prosenttia hinnan muutos oli kaiken kaikkiaan?","32 euron tuotteesta saa 15 % alennuksen. Jonkun ajan kuluttua hinta laskee vielä 19 %. Kuinka monta prosenttia hinnan lasku oli kaiken kaikkiaan?","32 euron tuotteen hinta nousee 92 %.Jonkun ajan kuluttua hinta nousee vielä 34 %. Kuinka monta prosenttia hinnan nousu oli kaiken kaikkiaan?","Kuinka monta prosenttia luku 47 on suurempi kuin 32","Kuinka monta prosenttia luku 17 on pienempi kuin 32?","Prosenttiluku A on aluksi 91 %. Myöhemmin se on 100 %. Kuinka monta prosenttiyksikköä muutos on?","Herra X:n kannatus edellisissä vaaleissa oli 91 %. Nyt se on 100 %. Kuinka monta prosenttiyksikköä muutos on?","84 prosenttia eräästä luvusta on 32, mikä on tämä luku?","Tuotteesta saadaan 15 % alennus. Alennus on 4,8 €. Mikä on alkuperäinen hinta?","Tuotteen hinta nousee 92 %. Hinnannousu on 29,44 €. Mikä on alkuperäinen hinta?","Tuotteesta saadaan 15 % alennus. Hinta alennuksen jälkeen on 27,2 €. Mikä on alkuperäinen hinta?","Tuotteen hinta nousee 92 %. Uusi hinta on 61,44 €. Mikä on alkuperäinen hinta?","Kalle saa palkkaa 1687 €. Paljonko hän maksaa veroja, kun hänen veroprosenttinsa on 22 %?","Kalle saa palkkaa 1687 €. Paljonko hänelle jää palkasta verojen jälkeen, kun hänen veroprosenttinsa on 22 %?","Kalle saa palkkaa 1687 €/kk. Kallen veroprosentti on 22 %, tuloraja on 2308 € ja lisäprosentti 39 %.  Paljonko hän maksaa veroja?","Kalle saa palkkaa 1687 €/kk. Kallen veroprosentti on 22 %, tuloraja on 2308 € ja lisäprosentti 39 %.  Paljonko hänelle jää käteen verojen jälkeen?","Pankkitilillä on rahaa 8049 €. Korkoprosentti on 0,1 %. Kuinka paljon se tuottaa korkoa vuodessa?","Pankkitilillä on rahaa 8049 €. Korkoprosentti on 0,1 %. Kuinka paljon tilillä on rahaa vuoden kuluttua?","Kuinka paljon 8049 € laina kasvaa korkoa kuukaudessa, kun korkoprosentti on 0,1 %?","Kuinka paljon 8049 € laina kasvaa korkoa 2 kuukaudessa, kun korkoprosentti on 0,1 %?","Kuinka paljon 8049 € laina kasvaa korkoa 68 päivässä, kun korkoprosentti on 0,1 %?","Kuinka monta päivää 8049 € lainan pitää kasvaa korkoa, jotta korko olisi 1,5 €. Korkoprosentti on 0,1 %?","Mikä on lainan korkoprosentin oltava, jotta 8049 € laina kasvaa korkoa 1,5 €, kun laina-aika on 68 päivää?","Kuinka paljon on lainan pääoma, kun 68 päivässä kertyy korkoa 1,5 € korkoprosentin ollessa 0,1 %.","Pankkitilillä on rahaa 8049 €. Korkoprosentti on 0,1 %. Kuinka paljon tilillä on rahaa 7 vuoden kuluttua, kun korko lisätään tilille aina vuoden kuluttua?","Pankkitilillä on rahaa 8049 €. Korkoprosentti on 0,1 %. Kuinka paljon korkoa kertyy 7 vuodessa kuluttua, kun korko lisätään tilille aina vuoden kuluttua?","Kuinka paljon on 20 promillea luvusta 32?","Kuinka monta promillea luku 0,64 on luvusta 32?"]
["13.","25 euron tuotteesta saa 5 % alennuksen. Paljonko on alennus?",null,null,null,null,null,null,null,null,null,null,null,7,79,25,5,14,19,39,59,21,68,2457,2401,29,19,2.2999999999999998,8,3781,3,151,67,null,8,47,125,22,18,55,92,44,48,68,3756,1563,22,18,2.2000000000000002,6,9865,9,17,138,null,3,"Kuinka monta prosenttia luku 20 on luvusta 25?","25 euron tuotteesta saa 1 € alennuksen. Montako prosenttia alennus on?","25 euron tuotteen uusi hinta on 24 €. Montako prosenttia alennus on?","25 euron tuotteen hinta nousee 5 €. Montako prosenttia hinta nousee?","25 euron tuotteen uusi hinta on 30 €. Montako prosenttia hinta nousee?","Kuinka paljon on 79 % luvusta 25?","25 euron tuotteesta saa 5 % alennuksen. Paljonko on alennus?","25 euron tuotteesta saa 5 % alennuksen. Paljonko on uusi hinta?","25 euron tuotteen hinta nousee 19 %. Paljonko on uusi hinta?","25 euron tuotteesta saa 5 % alennuksen. Jonkun ajan kuluttua hinta nousee 19 %. Kuinka monta prosenttia hinnan muutos oli kaiken kaikkiaan?","25 euron tuotteen hinta nousee 19 %.Jonkun ajan kuluttua hinta laskee 5 %. Kuinka monta prosenttia hinnan muutos oli kaiken kaikkiaan?","25 euron tuotteesta saa 5 % alennuksen. Jonkun ajan kuluttua hinta laskee vielä 14 %. Kuinka monta prosenttia hinnan lasku oli kaiken kaikkiaan?","25 euron tuotteen hinta nousee 19 %.Jonkun ajan kuluttua hinta nousee vielä 39 %. Kuinka monta prosenttia hinnan nousu oli kaiken kaikkiaan?","Kuinka monta prosenttia luku 40 on suurempi kuin 25","Kuinka monta prosenttia luku 10 on pienempi kuin 25?","Prosenttiluku A on aluksi 21 %. Myöhemmin se on 68 %. Kuinka monta prosenttiyksikköä muutos on?","Herra X:n kannatus edellisissä vaaleissa oli 21 %. Nyt se on 68 %. Kuinka monta prosenttiyksikköä muutos on?","79 prosenttia eräästä luvusta on 25, mikä on tämä luku?","Tuotteesta saadaan 5 % alennus. Alennus on 1,25 €. Mikä on alkuperäinen hinta?","Tuotteen hinta nousee 19 %. Hinnannousu on 4,75 €. Mikä on alkuperäinen hinta?","Tuotteesta saadaan 5 % alennus. Hinta alennuksen jälkeen on 23,75 €. Mikä on alkuperäinen hinta?","Tuotteen hinta nousee 19 %. Uusi hinta on 29,75 €. Mikä on alkuperäinen hinta?","Kalle saa palkkaa 2457 €. Paljonko hän maksaa veroja, kun hänen veroprosenttinsa on 29 %?","Kalle saa palkkaa 2457 €. Paljonko hänelle jää palkasta verojen jälkeen, kun hänen veroprosenttinsa on 29 %?","Kalle saa palkkaa 2457 €/kk. Kallen veroprosentti on 29 %, tuloraja on 2401 € ja lisäprosentti 48 %.  Paljonko hän maksaa veroja?","Kalle saa palkkaa 2457 €/kk. Kallen veroprosentti on 29 %, tuloraja on 2401 € ja lisäprosentti 48 %.  Paljonko hänelle jää käteen verojen jälkeen?","Pankkitilillä on rahaa 3781 €. Korkoprosentti on 2,3 %. Kuinka paljon se tuottaa korkoa vuodessa?","Pankkitilillä on rahaa 3781 €. Korkoprosentti on 2,3 %. Kuinka paljon tilillä on rahaa vuoden kuluttua?","Kuinka paljon 3781 € laina kasvaa korkoa kuukaudessa, kun korkoprosentti on 2,3 %?","Kuinka paljon 3781 € laina kasvaa korkoa 3 kuukaudessa, kun korkoprosentti on 2,3 %?","Kuinka paljon 3781 € laina kasvaa korkoa 151 päivässä, kun korkoprosentti on 2,3 %?","Kuinka monta päivää 3781 € lainan pitää kasvaa korkoa, jotta korko olisi 35,98 €. Korkoprosentti on 2,3 %?","Mikä on lainan korkoprosentin oltava, jotta 3781 € laina kasvaa korkoa 35,98 €, kun laina-aika on 151 päivää?","Kuinka paljon on lainan pääoma, kun 151 päivässä kertyy korkoa 35,98 € korkoprosentin ollessa 2,3 %.","Pankkitilillä on rahaa 3781 €. Korkoprosentti on 2,3 %. Kuinka paljon tilillä on rahaa 8 vuoden kuluttua, kun korko lisätään tilille aina vuoden kuluttua?","Pankkitilillä on rahaa 3781 €. Korkoprosentti on 2,3 %. Kuinka paljon korkoa kertyy 8 vuodessa kuluttua, kun korko lisätään tilille aina vuoden kuluttua?","Kuinka paljon on 67 promillea luvusta 25?","Kuinka monta promillea luku 1,68 on luvusta 25?"]
["14.","Kuinka paljon on 71 % luvusta 63?",null,null,null,null,null,null,null,null,null,null,null,6,71,63,28,4,69,19,44,99,81,3490,2654,28,17,1.8,6,9692,4,90,113,null,8,29,31,55,22,37,20,57,72,40,1863,2962,19,16,2,3,1165,6,332,66,null,3,"Kuinka monta prosenttia luku 45 on luvusta 63?","63 euron tuotteesta saa 18 € alennuksen. Montako prosenttia alennus on?","63 euron tuotteen uusi hinta on 45 €. Montako prosenttia alennus on?","63 euron tuotteen hinta nousee 43 €. Montako prosenttia hinta nousee?","63 euron tuotteen uusi hinta on 106 €. Montako prosenttia hinta nousee?","Kuinka paljon on 71 % luvusta 63?","63 euron tuotteesta saa 28 % alennuksen. Paljonko on alennus?","63 euron tuotteesta saa 28 % alennuksen. Paljonko on uusi hinta?","63 euron tuotteen hinta nousee 69 %. Paljonko on uusi hinta?","63 euron tuotteesta saa 28 % alennuksen. Jonkun ajan kuluttua hinta nousee 69 %. Kuinka monta prosenttia hinnan muutos oli kaiken kaikkiaan?","63 euron tuotteen hinta nousee 69 %.Jonkun ajan kuluttua hinta laskee 28 %. Kuinka monta prosenttia hinnan muutos oli kaiken kaikkiaan?","63 euron tuotteesta saa 28 % alennuksen. Jonkun ajan kuluttua hinta laskee vielä 4 %. Kuinka monta prosenttia hinnan lasku oli kaiken kaikkiaan?","63 euron tuotteen hinta nousee 69 %.Jonkun ajan kuluttua hinta nousee vielä 19 %. Kuinka monta prosenttia hinnan nousu oli kaiken kaikkiaan?","Kuinka monta prosenttia luku 91 on suurempi kuin 63","Kuinka monta prosenttia luku 35 on pienempi kuin 63?","Prosenttiluku A on aluksi 99 %. Myöhemmin se on 81 %. Kuinka monta prosenttiyksikköä muutos on?","Herra X:n kannatus edellisissä vaaleissa oli 99 %. Nyt se on 81 %. Kuinka monta prosenttiyksikköä muutos on?","71 prosenttia eräästä luvusta on 63, mikä on tämä luku?","Tuotteesta saadaan 28 % alennus. Alennus on 17,64 €. Mikä on alkuperäinen hinta?","Tuotteen hinta nousee 69 %. Hinnannousu on 43,47 €. Mikä on alkuperäinen hinta?","Tuotteesta saadaan 28 % alennus. Hinta alennuksen jälkeen on 45,36 €. Mikä on alkuperäinen hinta?","Tuotteen hinta nousee 69 %. Uusi hinta on 106,47 €. Mikä on alkuperäinen hinta?","Kalle saa palkkaa 3490 €. Paljonko hän maksaa veroja, kun hänen veroprosenttinsa on 28 %?","Kalle saa palkkaa 3490 €. Paljonko hänelle jää palkasta verojen jälkeen, kun hänen veroprosenttinsa on 28 %?","Kalle saa palkkaa 3490 €/kk. Kallen veroprosentti on 28 %, tuloraja on 2654 € ja lisäprosentti 45 %.  Paljonko hän maksaa veroja?","Kalle saa palkkaa 3490 €/kk. Kallen veroprosentti on 28 %, tuloraja on 2654 € ja lisäprosentti 45 %.  Paljonko hänelle jää käteen verojen jälkeen?","Pankkitilillä on rahaa 9692 €. Korkoprosentti on 1,8 %. Kuinka paljon se tuottaa korkoa vuodessa?","Pankkitilillä on rahaa 9692 €. Korkoprosentti on 1,8 %. Kuinka paljon tilillä on rahaa vuoden kuluttua?","Kuinka paljon 9692 € laina kasvaa korkoa kuukaudessa, kun korkoprosentti on 1,8 %?","Kuinka paljon 9692 € laina kasvaa korkoa 4 kuukaudessa, kun korkoprosentti on 1,8 %?","Kuinka paljon 9692 € laina kasvaa korkoa 90 päivässä, kun korkoprosentti on 1,8 %?","Kuinka monta päivää 9692 € lainan pitää kasvaa korkoa, jotta korko olisi 43,02 €. Korkoprosentti on 1,8 %?","Mikä on lainan korkoprosentin oltava, jotta 9692 € laina kasvaa korkoa 43,02 €, kun laina-aika on 90 päivää?","Kuinka paljon on lainan pääoma, kun 90 päivässä kertyy korkoa 43,02 € korkoprosentin ollessa 1,8 %.","Pankkitilillä on rahaa 9692 €. Korkoprosentti on 1,8 %. Kuinka paljon tilillä on rahaa 6 vuoden kuluttua, kun korko lisätään tilille aina vuoden kuluttua?","Pankkitilillä on rahaa 9692 €. Korkoprosentti on 1,8 %. Kuinka paljon korkoa kertyy 6 vuodessa kuluttua, kun korko lisätään tilille aina vuoden kuluttua?","Kuinka paljon on 113 promillea luvusta 63?","Kuinka monta promillea luku 7,12 on luvusta 63?"]
["15.","Kuinka paljon on 58 % luvusta 40?",null,null,null,null,null,null,null,null,null,null,null,6,58,40,6,16,94,51,60,54,26,1620,2657,19,17,3.1,6,2467,4,164,85,null,7,81,31,31,7,5,58,34,92,23,3495,2246,22,24,3.4,3,6157,11,31,148,null,2,"Kuinka monta prosenttia luku 23 on luvusta 40?","40 euron tuotteesta saa 2 € alennuksen. Montako prosenttia alennus on?","40 euron tuotteen uusi hinta on 38 €. Montako prosenttia alennus on?","40 euron tuotteen hinta nousee 38 €. Montako prosenttia hinta nousee?","40 euron tuotteen uusi hinta on 78 €. Montako prosenttia hinta nousee?","Kuinka paljon on 58 % luvusta 40?","40 euron tuotteesta saa 6 % alennuksen. Paljonko on alennus?","40 euron tuotteesta saa 6 % alennuksen. Paljonko on uusi hinta?","40 euron tuotteen hinta nousee 94 %. Paljonko on uusi hinta?","40 euron tuotteesta saa 6 % alennuksen. Jonkun ajan kuluttua hinta nousee 94 %. Kuinka monta prosenttia hinnan muutos oli kaiken kaikkiaan?","40 euron tuotteen hinta nousee 94 %.Jonkun ajan kuluttua hinta laskee 6 %. Kuinka monta prosenttia hinnan muutos oli kaiken kaikkiaan?","40 euron tuotteesta saa 6 % alennuksen. Jonkun ajan kuluttua hinta laskee vielä 16 %. Kuinka monta prosenttia hinnan lasku oli kaiken kaikkiaan?","40 euron tuotteen hinta nousee 94 %.Jonkun ajan kuluttua hinta nousee vielä 51 %. Kuinka monta prosenttia hinnan nousu oli kaiken kaikkiaan?","Kuinka monta prosenttia luku 64 on suurempi kuin 40","Kuinka monta prosenttia luku 16 on pienempi kuin 40?","Prosenttiluku A on aluksi 54 %. Myöhemmin se on 26 %. Kuinka monta prosenttiyksikköä muutos on?","Herra X:n kannatus edellisissä vaaleissa oli 54 %. Nyt se on 26 %. Kuinka monta prosenttiyksikköä muutos on?","58 prosenttia eräästä luvusta on 40, mikä on tämä luku?","Tuotteesta saadaan 6 % alennus. Alennus on 2,4 €. Mikä on alkuperäinen hinta?","Tuotteen hinta nousee 94 %. Hinnannousu on 37,6 €. Mikä on alkuperäinen hinta?","Tuotteesta saadaan 6 % alennus. Hinta alennuksen jälkeen on 37,6 €. Mikä on alkuperäinen hinta?","Tuotteen hinta nousee 94 %. Uusi hinta on 77,6 €. Mikä on alkuperäinen hinta?","Kalle saa palkkaa 1620 €. Paljonko hän maksaa veroja, kun hänen veroprosenttinsa on 19 %?","Kalle saa palkkaa 1620 €. Paljonko hänelle jää palkasta verojen jälkeen, kun hänen veroprosenttinsa on 19 %?","Kalle saa palkkaa 1620 €/kk. Kallen veroprosentti on 19 %, tuloraja on 2657 € ja lisäprosentti 36 %.  Paljonko hän maksaa veroja?","Kalle saa palkkaa 1620 €/kk. Kallen veroprosentti on 19 %, tuloraja on 2657 € ja lisäprosentti 36 %.  Paljonko hänelle jää käteen verojen jälkeen?","Pankkitilillä on rahaa 2467 €. Korkoprosentti on 3,1 %. Kuinka paljon se tuottaa korkoa vuodessa?","Pankkitilillä on rahaa 2467 €. Korkoprosentti on 3,1 %. Kuinka paljon tilillä on rahaa vuoden kuluttua?","Kuinka paljon 2467 € laina kasvaa korkoa kuukaudessa, kun korkoprosentti on 3,1 %?","Kuinka paljon 2467 € laina kasvaa korkoa 4 kuukaudessa, kun korkoprosentti on 3,1 %?","Kuinka paljon 2467 € laina kasvaa korkoa 164 päivässä, kun korkoprosentti on 3,1 %?","Kuinka monta päivää 2467 € lainan pitää kasvaa korkoa, jotta korko olisi 34,36 €. Korkoprosentti on 3,1 %?","Mikä on lainan korkoprosentin oltava, jotta 2467 € laina kasvaa korkoa 34,36 €, kun laina-aika on 164 päivää?","Kuinka paljon on lainan pääoma, kun 164 päivässä kertyy korkoa 34,36 € korkoprosentin ollessa 3,1 %.","Pankkitilillä on rahaa 2467 €. Korkoprosentti on 3,1 %. Kuinka paljon tilillä on rahaa 6 vuoden kuluttua, kun korko lisätään tilille aina vuoden kuluttua?","Pankkitilillä on rahaa 2467 €. Korkoprosentti on 3,1 %. Kuinka paljon korkoa kertyy 6 vuodessa kuluttua, kun korko lisätään tilille aina vuoden kuluttua?","Kuinka paljon on 85 promillea luvusta 40?","Kuinka monta promillea luku 3,4 on luvusta 40?"]
["16.","72 euron tuotteesta saa 52 % alennuksen. Paljonko on alennus?",null,null,null,null,null,null,null,null,null,null,null,7,17,72,52,58,59,85,29,100,43,2612,1694,15,18,4.5999999999999996,1,1692,11,154,169,null,6,30,8,30,19,63,56,51,8,79,3648,2847,20,21,3.8,3,4033,8,296,84,null,1,"Kuinka monta prosenttia luku 12 on luvusta 72?","72 euron tuotteesta saa 37 € alennuksen. Montako prosenttia alennus on?","72 euron tuotteen uusi hinta on 35 €. Montako prosenttia alennus on?","72 euron tuotteen hinta nousee 42 €. Montako prosenttia hinta nousee?","72 euron tuotteen uusi hinta on 114 €. Montako prosenttia hinta nousee?","Kuinka paljon on 17 % luvusta 72?","72 euron tuotteesta saa 52 % alennuksen. Paljonko on alennus?","72 euron tuotteesta saa 52 % alennuksen. Paljonko on uusi hinta?","72 euron tuotteen hinta nousee 59 %. Paljonko on uusi hinta?","72 euron tuotteesta saa 52 % alennuksen. Jonkun ajan kuluttua hinta nousee 59 %. Kuinka monta prosenttia hinnan muutos oli kaiken kaikkiaan?","72 euron tuotteen hinta nousee 59 %.Jonkun ajan kuluttua hinta laskee 52 %. Kuinka monta prosenttia hinnan muutos oli kaiken kaikkiaan?","72 euron tuotteesta saa 52 % alennuksen. Jonkun ajan kuluttua hinta laskee vielä 58 %. Kuinka monta prosenttia hinnan lasku oli kaiken kaikkiaan?","72 euron tuotteen hinta nousee 59 %.Jonkun ajan kuluttua hinta nousee vielä 85 %. Kuinka monta prosenttia hinnan nousu oli kaiken kaikkiaan?","Kuinka monta prosenttia luku 93 on suurempi kuin 72","Kuinka monta prosenttia luku 51 on pienempi kuin 72?","Prosenttiluku A on aluksi 100 %. Myöhemmin se on 43 %. Kuinka monta prosenttiyksikköä muutos on?","Herra X:n kannatus edellisissä vaaleissa oli 100 %. Nyt se on 43 %. Kuinka monta prosenttiyksikköä muutos on?","17 prosenttia eräästä luvusta on 72, mikä on tämä luku?","Tuotteesta saadaan 52 % alennus. Alennus on 37,44 €. Mikä on alkuperäinen hinta?","Tuotteen hinta nousee 59 %. Hinnannousu on 42,48 €. Mikä on alkuperäinen hinta?","Tuotteesta saadaan 52 % alennus. Hinta alennuksen jälkeen on 34,56 €. Mikä on alkuperäinen hinta?","Tuotteen hinta nousee 59 %. Uusi hinta on 114,48 €. Mikä on alkuperäinen hinta?","Kalle saa palkkaa 2612 €. Paljonko hän maksaa veroja, kun hänen veroprosenttinsa on 15 %?","Kalle saa palkkaa 2612 €. Paljonko hänelle jää palkasta verojen jälkeen, kun hänen veroprosenttinsa on 15 %?","Kalle saa palkkaa 2612 €/kk. Kallen veroprosentti on 15 %, tuloraja on 1694 € ja lisäprosentti 33 %.  Paljonko hän maksaa veroja?","Kalle saa palkkaa 2612 €/kk. Kallen veroprosentti on 15 %, tuloraja on 1694 € ja lisäprosentti 33 %.  Paljonko hänelle jää käteen verojen jälkeen?","Pankkitilillä on rahaa 1692 €. Korkoprosentti on 4,6 %. Kuinka paljon se tuottaa korkoa vuodessa?","Pankkitilillä on rahaa 1692 €. Korkoprosentti on 4,6 %. Kuinka paljon tilillä on rahaa vuoden kuluttua?","Kuinka paljon 1692 € laina kasvaa korkoa kuukaudessa, kun korkoprosentti on 4,6 %?","Kuinka paljon 1692 € laina kasvaa korkoa 11 kuukaudessa, kun korkoprosentti on 4,6 %?","Kuinka paljon 1692 € laina kasvaa korkoa 154 päivässä, kun korkoprosentti on 4,6 %?","Kuinka monta päivää 1692 € lainan pitää kasvaa korkoa, jotta korko olisi 32,84 €. Korkoprosentti on 4,6 %?","Mikä on lainan korkoprosentin oltava, jotta 1692 € laina kasvaa korkoa 32,84 €, kun laina-aika on 154 päivää?","Kuinka paljon on lainan pääoma, kun 154 päivässä kertyy korkoa 32,84 € korkoprosentin ollessa 4,6 %.","Pankkitilillä on rahaa 1692 €. Korkoprosentti on 4,6 %. Kuinka paljon tilillä on rahaa 1 vuoden kuluttua, kun korko lisätään tilille aina vuoden kuluttua?","Pankkitilillä on rahaa 1692 €. Korkoprosentti on 4,6 %. Kuinka paljon korkoa kertyy 1 vuodessa kuluttua, kun korko lisätään tilille aina vuoden kuluttua?","Kuinka paljon on 169 promillea luvusta 72?","Kuinka monta promillea luku 12,17 on luvusta 72?"]
["17.","79 euron tuotteesta saa 9 % alennuksen. Paljonko on uusi hinta?",null,null,null,null,null,null,null,null,null,null,null,8,46,79,9,10,36,2,80,24,47,2692,2202,23,24,4.8,1,629,9,190,116,null,6,1,19,27,15,66,72,27,7,7,1892,1777,29,16,4.2,6,5253,2,83,137,null,1,"Kuinka monta prosenttia luku 36 on luvusta 79?","79 euron tuotteesta saa 7 € alennuksen. Montako prosenttia alennus on?","79 euron tuotteen uusi hinta on 72 €. Montako prosenttia alennus on?","79 euron tuotteen hinta nousee 28 €. Montako prosenttia hinta nousee?","79 euron tuotteen uusi hinta on 107 €. Montako prosenttia hinta nousee?","Kuinka paljon on 46 % luvusta 79?","79 euron tuotteesta saa 9 % alennuksen. Paljonko on alennus?","79 euron tuotteesta saa 9 % alennuksen. Paljonko on uusi hinta?","79 euron tuotteen hinta nousee 36 %. Paljonko on uusi hinta?","79 euron tuotteesta saa 9 % alennuksen. Jonkun ajan kuluttua hinta nousee 36 %. Kuinka monta prosenttia hinnan muutos oli kaiken kaikkiaan?","79 euron tuotteen hinta nousee 36 %.Jonkun ajan kuluttua hinta laskee 9 %. Kuinka monta prosenttia hinnan muutos oli kaiken kaikkiaan?","79 euron tuotteesta saa 9 % alennuksen. Jonkun ajan kuluttua hinta laskee vielä 10 %. Kuinka monta prosenttia hinnan lasku oli kaiken kaikkiaan?","79 euron tuotteen hinta nousee 36 %.Jonkun ajan kuluttua hinta nousee vielä 2 %. Kuinka monta prosenttia hinnan nousu oli kaiken kaikkiaan?","Kuinka monta prosenttia luku 142 on suurempi kuin 79","Kuinka monta prosenttia luku 16 on pienempi kuin 79?","Prosenttiluku A on aluksi 24 %. Myöhemmin se on 47 %. Kuinka monta prosenttiyksikköä muutos on?","Herra X:n kannatus edellisissä vaaleissa oli 24 %. Nyt se on 47 %. Kuinka monta prosenttiyksikköä muutos on?","46 prosenttia eräästä luvusta on 79, mikä on tämä luku?","Tuotteesta saadaan 9 % alennus. Alennus on 7,11 €. Mikä on alkuperäinen hinta?","Tuotteen hinta nousee 36 %. Hinnannousu on 28,44 €. Mikä on alkuperäinen hinta?","Tuotteesta saadaan 9 % alennus. Hinta alennuksen jälkeen on 71,89 €. Mikä on alkuperäinen hinta?","Tuotteen hinta nousee 36 %. Uusi hinta on 107,44 €. Mikä on alkuperäinen hinta?","Kalle saa palkkaa 2692 €. Paljonko hän maksaa veroja, kun hänen veroprosenttinsa on 23 %?","Kalle saa palkkaa 2692 €. Paljonko hänelle jää palkasta verojen jälkeen, kun hänen veroprosenttinsa on 23 %?","Kalle saa palkkaa 2692 €/kk. Kallen veroprosentti on 23 %, tuloraja on 2202 € ja lisäprosentti 47 %.  Paljonko hän maksaa veroja?","Kalle saa palkkaa 2692 €/kk. Kallen veroprosentti on 23 %, tuloraja on 2202 € ja lisäprosentti 47 %.  Paljonko hänelle jää käteen verojen jälkeen?","Pankkitilillä on rahaa 629 €. Korkoprosentti on 4,8 %. Kuinka paljon se tuottaa korkoa vuodessa?","Pankkitilillä on rahaa 629 €. Korkoprosentti on 4,8 %. Kuinka paljon tilillä on rahaa vuoden kuluttua?","Kuinka paljon 629 € laina kasvaa korkoa kuukaudessa, kun korkoprosentti on 4,8 %?","Kuinka paljon 629 € laina kasvaa korkoa 9 kuukaudessa, kun korkoprosentti on 4,8 %?","Kuinka paljon 629 € laina kasvaa korkoa 190 päivässä, kun korkoprosentti on 4,8 %?","Kuinka monta päivää 629 € lainan pitää kasvaa korkoa, jotta korko olisi 15,72 €. Korkoprosentti on 4,8 %?","Mikä on lainan korkoprosentin oltava, jotta 629 € laina kasvaa korkoa 15,72 €, kun laina-aika on 190 päivää?","Kuinka paljon on lainan pääoma, kun 190 päivässä kertyy korkoa 15,72 € korkoprosentin ollessa 4,8 %.","Pankkitilillä on rahaa 629 €. Korkoprosentti on 4,8 %. Kuinka paljon tilillä on rahaa 1 vuoden kuluttua, kun korko lisätään tilille aina vuoden kuluttua?","Pankkitilillä on rahaa 629 €. Korkoprosentti on 4,8 %. Kuinka paljon korkoa kertyy 1 vuodessa kuluttua, kun korko lisätään tilille aina vuoden kuluttua?","Kuinka paljon on 116 promillea luvusta 79?","Kuinka monta promillea luku 9,16 on luvusta 79?"]
["18.","136 euron tuotteesta saa 26 % alennuksen. Paljonko on uusi hinta?",null,null,null,null,null,null,null,null,null,null,null,8,23,136,26,42,18,7,55,77,20,2041,2388,15,20,2.4,2,9569,10,17,177,null,7,85,180,56,19,71,47,65,64,7,2433,2399,20,23,2.9,5,687,9,321,127,null,2,"Kuinka monta prosenttia luku 31 on luvusta 136?","136 euron tuotteesta saa 35 € alennuksen. Montako prosenttia alennus on?","136 euron tuotteen uusi hinta on 101 €. Montako prosenttia alennus on?","136 euron tuotteen hinta nousee 24 €. Montako prosenttia hinta nousee?","136 euron tuotteen uusi hinta on 160 €. Montako prosenttia hinta nousee?","Kuinka paljon on 23 % luvusta 136?","136 euron tuotteesta saa 26 % alennuksen. Paljonko on alennus?","136 euron tuotteesta saa 26 % alennuksen. Paljonko on uusi hinta?","136 euron tuotteen hinta nousee 18 %. Paljonko on uusi hinta?","136 euron tuotteesta saa 26 % alennuksen. Jonkun ajan kuluttua hinta nousee 18 %. Kuinka monta prosenttia hinnan muutos oli kaiken kaikkiaan?","136 euron tuotteen hinta nousee 18 %.Jonkun ajan kuluttua hinta laskee 26 %. Kuinka monta prosenttia hinnan muutos oli kaiken kaikkiaan?","136 euron tuotteesta saa 26 % alennuksen. Jonkun ajan kuluttua hinta laskee vielä 42 %. Kuinka monta prosenttia hinnan lasku oli kaiken kaikkiaan?","136 euron tuotteen hinta nousee 18 %.Jonkun ajan kuluttua hinta nousee vielä 7 %. Kuinka monta prosenttia hinnan nousu oli kaiken kaikkiaan?","Kuinka monta prosenttia luku 211 on suurempi kuin 136","Kuinka monta prosenttia luku 61 on pienempi kuin 136?","Prosenttiluku A on aluksi 77 %. Myöhemmin se on 20 %. Kuinka monta prosenttiyksikköä muutos on?","Herra X:n kannatus edellisissä vaaleissa oli 77 %. Nyt se on 20 %. Kuinka monta prosenttiyksikköä muutos on?","23 prosenttia eräästä luvusta on 136, mikä on tämä luku?","Tuotteesta saadaan 26 % alennus. Alennus on 35,36 €. Mikä on alkuperäinen hinta?","Tuotteen hinta nousee 18 %. Hinnannousu on 24,48 €. Mikä on alkuperäinen hinta?","Tuotteesta saadaan 26 % alennus. Hinta alennuksen jälkeen on 100,64 €. Mikä on alkuperäinen hinta?","Tuotteen hinta nousee 18 %. Uusi hinta on 160,48 €. Mikä on alkuperäinen hinta?","Kalle saa palkkaa 2041 €. Paljonko hän maksaa veroja, kun hänen veroprosenttinsa on 15 %?","Kalle saa palkkaa 2041 €. Paljonko hänelle jää palkasta verojen jälkeen, kun hänen veroprosenttinsa on 15 %?","Kalle saa palkkaa 2041 €/kk. Kallen veroprosentti on 15 %, tuloraja on 2388 € ja lisäprosentti 35 %.  Paljonko hän maksaa veroja?","Kalle saa palkkaa 2041 €/kk. Kallen veroprosentti on 15 %, tuloraja on 2388 € ja lisäprosentti 35 %.  Paljonko hänelle jää käteen verojen jälkeen?","Pankkitilillä on rahaa 9569 €. Korkoprosentti on 2,4 %. Kuinka paljon se tuottaa korkoa vuodessa?","Pankkitilillä on rahaa 9569 €. Korkoprosentti on 2,4 %. Kuinka paljon tilillä on rahaa vuoden kuluttua?","Kuinka paljon 9569 € laina kasvaa korkoa kuukaudessa, kun korkoprosentti on 2,4 %?","Kuinka paljon 9569 € laina kasvaa korkoa 10 kuukaudessa, kun korkoprosentti on 2,4 %?","Kuinka paljon 9569 € laina kasvaa korkoa 17 päivässä, kun korkoprosentti on 2,4 %?","Kuinka monta päivää 9569 € lainan pitää kasvaa korkoa, jotta korko olisi 10,7 €. Korkoprosentti on 2,4 %?","Mikä on lainan korkoprosentin oltava, jotta 9569 € laina kasvaa korkoa 10,7 €, kun laina-aika on 17 päivää?","Kuinka paljon on lainan pääoma, kun 17 päivässä kertyy korkoa 10,7 € korkoprosentin ollessa 2,4 %.","Pankkitilillä on rahaa 9569 €. Korkoprosentti on 2,4 %. Kuinka paljon tilillä on rahaa 2 vuoden kuluttua, kun korko lisätään tilille aina vuoden kuluttua?","Pankkitilillä on rahaa 9569 €. Korkoprosentti on 2,4 %. Kuinka paljon korkoa kertyy 2 vuodessa kuluttua, kun korko lisätään tilille aina vuoden kuluttua?","Kuinka paljon on 177 promillea luvusta 136?","Kuinka monta promillea luku 24,07 on luvusta 136?"]
["19.","150 euron tuotteesta saa 58 % alennuksen. Paljonko on uusi hinta?",null,null,null,null,null,null,null,null,null,null,null,8,5,150,58,9,54,89,66,57,56,2910,2463,20,17,3.8,10,9055,9,206,124,null,6,31,27,36,57,52,30,74,72,24,3706,2051,30,17,2.8,2,1094,6,6,18,null,1,"Kuinka monta prosenttia luku 8 on luvusta 150?","150 euron tuotteesta saa 87 € alennuksen. Montako prosenttia alennus on?","150 euron tuotteen uusi hinta on 63 €. Montako prosenttia alennus on?","150 euron tuotteen hinta nousee 81 €. Montako prosenttia hinta nousee?","150 euron tuotteen uusi hinta on 231 €. Montako prosenttia hinta nousee?","Kuinka paljon on 5 % luvusta 150?","150 euron tuotteesta saa 58 % alennuksen. Paljonko on alennus?","150 euron tuotteesta saa 58 % alennuksen. Paljonko on uusi hinta?","150 euron tuotteen hinta nousee 54 %. Paljonko on uusi hinta?","150 euron tuotteesta saa 58 % alennuksen. Jonkun ajan kuluttua hinta nousee 54 %. Kuinka monta prosenttia hinnan muutos oli kaiken kaikkiaan?","150 euron tuotteen hinta nousee 54 %.Jonkun ajan kuluttua hinta laskee 58 %. Kuinka monta prosenttia hinnan muutos oli kaiken kaikkiaan?","150 euron tuotteesta saa 58 % alennuksen. Jonkun ajan kuluttua hinta laskee vielä 9 %. Kuinka monta prosenttia hinnan lasku oli kaiken kaikkiaan?","150 euron tuotteen hinta nousee 54 %.Jonkun ajan kuluttua hinta nousee vielä 89 %. Kuinka monta prosenttia hinnan nousu oli kaiken kaikkiaan?","Kuinka monta prosenttia luku 249 on suurempi kuin 150","Kuinka monta prosenttia luku 51 on pienempi kuin 150?","Prosenttiluku A on aluksi 57 %. Myöhemmin se on 56 %. Kuinka monta prosenttiyksikköä muutos on?","Herra X:n kannatus edellisissä vaaleissa oli 57 %. Nyt se on 56 %. Kuinka monta prosenttiyksikköä muutos on?","5 prosenttia eräästä luvusta on 150, mikä on tämä luku?","Tuotteesta saadaan 58 % alennus. Alennus on 87 €. Mikä on alkuperäinen hinta?","Tuotteen hinta nousee 54 %. Hinnannousu on 81 €. Mikä on alkuperäinen hinta?","Tuotteesta saadaan 58 % alennus. Hinta alennuksen jälkeen on 63 €. Mikä on alkuperäinen hinta?","Tuotteen hinta nousee 54 %. Uusi hinta on 231 €. Mikä on alkuperäinen hinta?","Kalle saa palkkaa 2910 €. Paljonko hän maksaa veroja, kun hänen veroprosenttinsa on 20 %?","Kalle saa palkkaa 2910 €. Paljonko hänelle jää palkasta verojen jälkeen, kun hänen veroprosenttinsa on 20 %?","Kalle saa palkkaa 2910 €/kk. Kallen veroprosentti on 20 %, tuloraja on 2463 € ja lisäprosentti 37 %.  Paljonko hän maksaa veroja?","Kalle saa palkkaa 2910 €/kk. Kallen veroprosentti on 20 %, tuloraja on 2463 € ja lisäprosentti 37 %.  Paljonko hänelle jää käteen verojen jälkeen?","Pankkitilillä on rahaa 9055 €. Korkoprosentti on 3,8 %. Kuinka paljon se tuottaa korkoa vuodessa?","Pankkitilillä on rahaa 9055 €. Korkoprosentti on 3,8 %. Kuinka paljon tilillä on rahaa vuoden kuluttua?","Kuinka paljon 9055 € laina kasvaa korkoa kuukaudessa, kun korkoprosentti on 3,8 %?","Kuinka paljon 9055 € laina kasvaa korkoa 9 kuukaudessa, kun korkoprosentti on 3,8 %?","Kuinka paljon 9055 € laina kasvaa korkoa 206 päivässä, kun korkoprosentti on 3,8 %?","Kuinka monta päivää 9055 € lainan pitää kasvaa korkoa, jotta korko olisi 194,2 €. Korkoprosentti on 3,8 %?","Mikä on lainan korkoprosentin oltava, jotta 9055 € laina kasvaa korkoa 194,2 €, kun laina-aika on 206 päivää?","Kuinka paljon on lainan pääoma, kun 206 päivässä kertyy korkoa 194,2 € korkoprosentin ollessa 3,8 %.","Pankkitilillä on rahaa 9055 €. Korkoprosentti on 3,8 %. Kuinka paljon tilillä on rahaa 10 vuoden kuluttua, kun korko lisätään tilille aina vuoden kuluttua?","Pankkitilillä on rahaa 9055 €. Korkoprosentti on 3,8 %. Kuinka paljon korkoa kertyy 10 vuodessa kuluttua, kun korko lisätään tilille aina vuoden kuluttua?","Kuinka paljon on 124 promillea luvusta 150?","Kuinka monta promillea luku 18,6 on luvusta 150?"]
["Vastaukset (Jos pyöristetty, prosentit yhden desimaalin tarkkuudella, eurot 2 desimaalilla):"]
["1.",{"$f":"INDEX(BE75:CP75,N47)","v":"55,7 %"},null,"6.",{"$f":"INDEX(BE80:CP80,N52)","v":"90,2 %"},null,"11.",{"$f":"INDEX(BE85:CP85,N57)","v":"158,67 €"},null,"16.",{"$f":"INDEX(BE90:CP90,N62)","v":"37,44 €"}]
["2.",{"$f":"INDEX(BE76:CP76,N48)","v":"95,8 %"},null,"7.",{"$f":"INDEX(BE81:CP81,N53)","v":"39,2 %"},null,"12.",{"$f":"INDEX(BE86:CP86,N58)","v":"61,44 €"},null,"17.",{"$f":"INDEX(BE91:CP91,N63)","v":"71,89 €"}]
["3.",{"$f":"INDEX(BE77:CP77,N49)","v":"34,1 %"},null,"8.",{"$f":"INDEX(BE82:CP82,N54)","v":"60 %"},null,"13.",{"$f":"INDEX(BE87:CP87,N59)","v":"1,25 €"},null,"18.",{"$f":"INDEX(BE92:CP92,N64)","v":"100,64 €"}]
["4.",{"$f":"INDEX(BE78:CP78,N50)","v":"77 %"},null,"9.",{"$f":"INDEX(BE83:CP83,N55)","v":"59,4 %"},null,"14.",{"$f":"INDEX(BE88:CP88,N60)","v":44.7},null,"19.",{"$f":"INDEX(BE93:CP93,N65)","v":"63 €"}]
["5.",{"$f":"INDEX(BE79:CP79,N51)","v":"25,6 %"},null,"10.",{"$f":"INDEX(BE84:CP84,N56)","v":"32,1 %"},null,"15.",{"$f":"INDEX(BE89:CP89,N61)","v":23.2}]
[]
[]
["Tulostuva alue loppuu",null,null,null,null,null,null,null,null,null,null,null,null,null,null,null,null,null,null,null,null,null,null,null,null,null,null,null,null,null,null,null,null,null,null,null,null,null,null,null,null,null,null,null,null,null,null,null,null,null,null,null,null,null,null,null,null,null,null,null,null,"Vastaukset"]
["Tämän sovelman käyttöoikeudet:\nTekijänoikeudet tähän sovellukseen/tiedostoon omistaa Janne Koponen.\nTämä sovellus on ladattavissa osoitteesta https://peda.net/p/joykop/mm\nKysymyksiä ja palautetta voi laittaa Janne Koposelle (janne.koponen@tampere.fi)",null,null,null,null,null,null,null,null,null,null,null,null,null,null,null,null,null,null,null,null,null,null,null,null,null,null,null,null,null,null,null,null,null,null,null,null,null,null,null,null,null,null,null,null,null,null,null,null,null,null,null,null,null,null,null,{"$f":"CONCATENATE(ROUND(ROUND(O47*P47/100,0)/P47*100,1), \" %\")","v":"27,8 %"},{"$f":"CONCATENATE(ROUND(ROUND(Q47*P47/100,0)/P47*100,1), \" %\")","v":"55,7 %"},{"$f":"CONCATENATE(ROUND(ROUND(Q47*P47/100,0)/P47*100,1), \" %\")","v":"55,7 %"},{"$f":"CONCATENATE(ROUND(ROUND(S47*P47/100,0)/P47*100,1), \" %\")","v":"2,1 %"},{"$f":"CONCATENATE(ROUND(ROUND(S47*P47/100,0)/P47*100,1), \" %\")","v":"2,1 %"},{"$f":"ROUND(O47/100*P47,1)","v":27.2},{"$f":"CONCATENATE(ROUND(Q47/100*P47,2),\" €\")","v":"54,32 €"},{"$f":"CONCATENATE(ROUND((100-Q47)/100*P47,2),\" €\")","v":"42,68 €"},{"$f":"CONCATENATE(ROUND((100+S47)/100*P47,2),\" €\")","v":"98,94 €"},{"$f":"CONCATENATE(ROUND(((100-Q47)/100*(100+S47)/100-1)*100,1),\" %\")","v":"-55,1 %"},{"$f":"CONCATENATE(ROUND(((100-Q47)/100*(100+S47)/100-1)*100,1),\" %\")","v":"-55,1 %"},{"$f":"CONCATENATE(ROUND((1-(100-Q47)/100*(100-R47)/100)*100,1),\" %\")","v":"76,2 %"},{"$f":"CONCATENATE(ROUND((((100+S47)/100*(100+T47)/100)-1)*100,1),\" %\")","v":"73,4 %"},{"$f":"CONCATENATE(ROUND((ROUND(P47*(100+U47)/100,0)-P47)/P47*100,1),\" %\")","v":"32 %"},{"$f":"CONCATENATE(ROUND((P47-ROUND(P47*(100-U47)/100,0))/P47*100,1),\" %\")","v":"32 %"},{"$f":"CONCATENATE(W47-V47,\" %yks.\")","v":"84 %yks."},{"$f":"CONCATENATE(W47-V47,\" %yks.\")","v":"84 %yks."},{"$f":"ROUND(P47/O47*100,1)","v":346.4},{"$f":"CONCATENATE(ROUND(ROUND(P47*Q47/100,2)/Q47*100,2),\" €\")","v":"97 €"},{"$f":"CONCATENATE(ROUND(ROUND(P47*S47/100,2)/S47*100,2),\" €\")","v":"97 €"},{"$f":"CONCATENATE(ROUND(ROUND(P47*(100-Q47)/100,2)/(100-Q47)*100,2),\" €\")","v":"97 €"},{"$f":"CONCATENATE(ROUND(ROUND(P47*(100+S47)/100,2)/(100+S47)*100,2),\" €\")","v":"97 €"},{"$f":"CONCATENATE(ROUND(X47*Z47/100,2),\" €\")","v":"1116,21 €"},{"$f":"CONCATENATE(ROUND(X47-X47*Z47/100,2),\" €\")","v":"2732,79 €"},{"$f":"CONCATENATE(IF(X47<Y47,ROUND(X47*Z47/100,2),ROUND(Y47*Z47/100+(X47-Y47)*(Z47+AA47)/100,2)),\" €\")","v":"1475,93 €"},{"$f":"CONCATENATE(IF(X47<Y47,ROUND(X47-X47*Z47/100,2),ROUND(X47-(Y47*Z47/100+(X47-Y47)*(Z47+AA47)/100),2)),\" €\")","v":"2373,07 €"},{"$f":"CONCATENATE(ROUND(AD47*AB47/100,2),\" €\")","v":"1,98 €"},{"$f":"CONCATENATE(AD47+ROUND(AD47*AB47/100,2),\" €\")","v":"1985,98 €"},{"$f":"CONCATENATE(ROUND(AD47*AB47/100/12,2),\" €\")","v":"0,17 €"},{"$f":"CONCATENATE(ROUND(AD47*AB47/100/12*AE47,2),\" €\")","v":"1,65 €"},{"$f":"CONCATENATE(ROUND(AD47*AB47/100/365*AF47,2),\" €\")","v":"1,79 €"},{"$f":"AF47","v":329},{"$f":"CONCATENATE(AB47,\" %\")","v":"0,1 %"},{"$f":"CONCATENATE(AD47,\" €\")","v":"1984 €"},{"$f":"CONCATENATE(ROUND(AD47*(1+AB47/100)^AC47,2),\" €\")","v":"1985,98 €"},{"$f":"CONCATENATE(ROUND(AD47*(1+AB47/100)^AC47-AD47,2),\" €\")","v":"1,98 €"},{"$f":"ROUND(AG47*P47/1000,1)","v":8.1999999999999993},{"$f":"CONCATENATE(ROUND(ROUND(P47*AG47/1000,2)/P47*1000,1),\" ‰\")","v":"85,1 ‰"}]
["Mitä saat luvallani tehdä:\n- Saat käyttää sovellusta omassa opetuksessasi ilman erillistä korvausta.\n- Ilman eri lupaa voit laittaa tämän osaksi ilmaista oppimateriaalipakettia, jos sitä saa jakaa ilmaiseksi eteenpäin.\n- Saat kertoa, mistä tämän latasit, jotta muutkin tätä tarvitsevat tämän löytävät.",null,null,null,null,null,null,null,null,null,null,null,null,null,null,null,null,null,null,null,null,null,null,null,null,null,null,null,null,null,null,null,null,null,null,null,null,null,null,null,null,null,null,null,null,null,null,null,null,null,null,null,null,null,null,null,"40 %","44,2 %","44,2 %","95,8 %",{"$f":"CONCATENATE(ROUND(ROUND(S48*P48/100,0)/P48*100,1), \" %\")","v":"95,8 %"},38,{"$f":"CONCATENATE(ROUND(Q48/100*P48,2),\" €\")","v":"41,8 €"},"53,2 €","186,2 €",{"$f":"CONCATENATE(ROUND(((100-Q48)/100*(100+S48)/100-1)*100,1),\" %\")","v":"9,8 %"},{"$f":"CONCATENATE(ROUND(((100-Q48)/100*(100+S48)/100-1)*100,1),\" %\")","v":"9,8 %"},{"$f":"CONCATENATE(ROUND((1-(100-Q48)/100*(100-R48)/100)*100,1),\" %\")","v":"55,2 %"},{"$f":"CONCATENATE(ROUND((((100+S48)/100*(100+T48)/100)-1)*100,1),\" %\")","v":"274,4 %"},"42,1 %","42,1 %","-76 %yks.","-76 %yks.",237.5,"95 €","95 €","95 €","95 €","982,02 €","2794,98 €","1315,28 €","2461,72 €","98,51 €","2624,51 €",{"$f":"CONCATENATE(ROUND(AD48*AB48/100/12,2),\" €\")","v":"8,21 €"},{"$f":"CONCATENATE(ROUND(AD48*AB48/100/12*AE48,2),\" €\")","v":"16,42 €"},{"$f":"CONCATENATE(ROUND(AD48*AB48/100/365*AF48,2),\" €\")","v":"69,36 €"},{"$f":"AF48","v":257},{"$f":"CONCATENATE(AB48,\" %\")","v":"3,9 %"},{"$f":"CONCATENATE(AD48,\" €\")","v":"2526 €"},{"$f":"CONCATENATE(ROUND(AD48*(1+AB48/100)^AC48,2),\" €\")","v":"3058,52 €"},{"$f":"CONCATENATE(ROUND(AD48*(1+AB48/100)^AC48-AD48,2),\" €\")","v":"532,52 €"},5,"53,1 ‰"]
["Mitä et saa tehdä:\n- Ilman erillistä lupaa et saa liittää tätä sovellusta osaksi maksullista oppimateriaalipakettia, jos pakettia ei saa jakaa maksutta eteenpäin.\n",null,null,null,null,null,null,null,null,null,null,null,null,null,null,null,null,null,null,null,null,null,null,null,null,null,null,null,null,null,null,null,null,null,null,null,null,null,null,null,null,null,null,null,null,null,null,null,null,null,null,null,null,null,null,null,"34,1 %","51,2 %","51,2 %","87,8 %","87,8 %",13.5,"20,91 €","20,09 €","77,49 €","-7,4 %","-7,4 %","78 %","247,8 %","46,3 %","46,3 %","58 %yks.","58 %yks.",124.2,"41 €","41 €","41 €","41 €","341,46 €","1555,54 €","369,39 €","1527,61 €","116,04 €","3984,04 €","9,67 €","77,36 €","45,14 €",142,"3 %","3868 €","3984,04 €","116,04 €",0.4,"10 ‰"]
["Miksi tällaiset ehdot:\n- Tämän systeemin tekemiseen on käytetty jonkin verran aikaa ja suklaata.\n- Käytetty aika on omalla osallani säästynyt jo sillä, ettei minun ole enää tarvinnut yhtä paljon tehdä käsin monisteita tai muokata niitä tarpeen mukaan.\n- Suklaata en tarvitse lisää, mutta haluan pitää itselläni oikeuden vaatia rahallista korvausta, jos joku oppimateriaalivalmistaja haluaa lisätä tämän sovelluksen jakamaansa oppimateriaaliin.\n- Ajansäästön lisäksi uskon myös opetukseni parantuneen, kun olen voinut tarjota oppilailleni juuri heidän taitotasolleen sopivia tehtäviä. Ja toivon muidenkin saavan saman hyödyn.",null,null,null,null,null,null,null,null,null,null,null,null,null,null,null,null,null,null,null,null,null,null,null,null,null,null,null,null,null,null,null,null,null,null,null,null,null,null,null,null,null,null,null,null,null,null,null,null,null,null,null,null,null,null,null,"20,8 %","9,8 %","9,8 %","77 %","77 %",38.4,"18,3 €","164,7 €","323,91 €","59,3 %","59,3 %","25,3 %","158,4 %","37,2 %","37,2 %","51 %yks.","51 %yks.",871.4,"183 €","183 €","183 €","183 €","709,94 €","2517,06 €","907,5 €","2319,5 €","92,96 €","2826,96 €","7,75 €","61,97 €","69,02 €",271,"3,4 %","2734 €","3022,46 €","288,46 €",13.7,"75 ‰"]
[null,null,null,null,null,null,null,null,null,null,null,null,null,null,null,null,null,null,null,null,null,null,null,null,null,null,null,null,null,null,null,null,null,null,null,null,null,null,null,null,null,null,null,null,null,null,null,null,null,null,null,null,null,null,null,null,"82,9 %","25,6 %","25,6 %","36,6 %","36,6 %",68.099999999999994,"20,5 €","61,5 €","111,52 €","2 %","2 %","37,8 %","124,4 %","41,5 %","41,5 %","42 %yks.","42 %yks.",98.8,"82 €","82 €","82 €","82 €","768,6 €","1976,4 €","768,6 €","1976,4 €","52,54 €","1644,54 €","4,38 €","35,02 €","45,77 €",318,"3,3 %","1592 €","1644,54 €","52,54 €",7.8,"95 ‰"]
[null,null,null,null,null,null,null,null,null,null,null,null,null,null,null,null,null,null,null,null,null,null,null,null,null,null,null,null,null,null,null,null,null,null,null,null,null,null,null,null,null,null,null,null,null,null,null,null,null,null,null,null,null,null,null,null,"28,8 %","43,9 %","43,9 %","90,2 %","90,2 %",38.299999999999997,"58,08 €","73,92 €","250,8 €","6,4 %","6,4 %","66,4 %","154,6 %","16,7 %","16,7 %","-14 %yks.","-14 %yks.",455.2,"132 €","132 €","132 €","132 €","308,7 €","1749,3 €","308,7 €","1749,3 €","17,35 €","430,35 €","1,45 €","7,23 €","15,35 €",323,"4,2 %","413 €","430,35 €","17,35 €",0.4,"3 ‰"]
[null,null,null,null,null,null,null,null,null,null,null,null,null,null,null,null,null,null,null,null,null,null,null,null,null,null,null,null,null,null,null,null,null,null,null,null,null,null,null,null,null,null,null,null,null,null,null,null,null,null,null,null,null,null,null,null,"83,1 %","39,2 %","39,2 %","95,8 %","95,8 %",137.80000000000001,"64,74 €","101,26 €","325,36 €","19,6 %","19,6 %","64,6 %","274,4 %","16,9 %","16,9 %","-8 %yks.","-8 %yks.",200,"166 €","166 €","166 €","166 €","427 €","1281 €","443,33 €","1264,67 €","21,18 €","564,18 €","1,76 €","5,29 €","6,85 €",118,"3,9 %","543 €","657,47 €","114,47 €",14.8,"89 ‰"]
[null,null,null,null,null,null,null,null,null,null,null,null,null,null,null,null,null,null,null,null,null,null,null,null,null,null,null,null,null,null,null,null,null,null,null,null,null,null,null,null,null,null,null,null,null,null,null,null,null,null,null,null,null,null,null,null,"11,3 %","2 %","2 %","60 %","60 %",16.5,"3 €","147 €","240 €","56,8 %","56,8 %","47,1 %","213,6 %","62 %","62 %","9 %yks.","9 %yks.",1363.6,"150 €","150 €","150 €","150 €","486,71 €","2376,29 €","486,71 €","2376,29 €","74,43 €","2263,43 €","6,2 €","49,62 €","51,38 €",252,"3,4 %","2189 €","2502,23 €","313,23 €",11.9,"79 ‰"]
[null,null,null,null,null,null,null,null,null,null,null,null,null,null,null,null,null,null,null,null,null,null,null,null,null,null,null,null,null,null,null,null,null,null,null,null,null,null,null,null,null,null,null,null,null,null,null,null,null,null,null,null,null,null,null,null,"0 %","59,4 %","59,4 %","50 %","50 %",0.3,"18,56 €","13,44 €","48,32 €","-36,6 %","-36,6 %","59,3 %","129,5 %","50 %","50 %","3 %yks.","3 %yks.",3200,"32 €","32 €","32 €","32 €","420,6 €","1682,4 €","420,6 €","1682,4 €","1,97 €","117,97 €","0,16 €","0,99 €","1,09 €",201,"1,7 %","116 €","124,09 €","8,09 €",1.9,"58,1 ‰"]
[null,null,null,null,null,null,null,null,null,null,null,null,null,null,null,null,null,null,null,null,null,null,null,null,null,null,null,null,null,null,null,null,null,null,null,null,null,null,null,null,null,null,null,null,null,null,null,null,null,null,null,null,null,null,null,null,"7,3 %","32,1 %","32,1 %","49,1 %","49,1 %",11.6,"52,8 €","112,2 €","245,85 €","1,3 %","1,3 %","68,7 %","175,7 %","23 %","23 %","-44 %yks.","-44 %yks.",2357.1,"165 €","165 €","165 €","165 €","567,15 €","3213,85 €","898,11 €","2882,89 €","98,67 €","3088,67 €","8,22 €","65,78 €","14,06 €",52,"3,3 %","2990 €","3088,67 €","98,67 €",11.9,"72 ‰"]
[null,null,null,null,null,null,null,null,null,null,null,null,null,null,null,null,null,null,null,null,null,null,null,null,null,null,null,null,null,null,null,null,null,null,null,null,null,null,null,null,null,null,null,null,null,null,null,null,null,null,null,null,null,null,null,null,"26,8 %","22,8 %","22,8 %","29,3 %","29,3 %",33.200000000000003,"28,29 €","94,71 €","158,67 €","-0,7 %","-0,7 %","46,9 %","127 %","38,2 %","38,2 %","-54 %yks.","-54 %yks.",455.6,"123 €","123 €","123 €","123 €","988,12 €","2540,88 €","1229,68 €","2299,32 €","2,73 €","93,73 €","0,23 €","1,82 €","0,78 €",104,"3 %","91 €","118,73 €","27,73 €",14.8,"120 ‰"]
[null,null,null,null,null,null,null,null,null,null,null,null,null,null,null,null,null,null,null,null,null,null,null,null,null,null,null,null,null,null,null,null,null,null,null,null,null,null,null,null,null,null,null,null,null,null,null,null,null,null,null,null,null,null,null,null,"84,4 %","15,6 %","15,6 %","90,6 %","90,6 %",26.9,"4,8 €","27,2 €","61,44 €","63,2 %","63,2 %","31,2 %","157,3 %","46,9 %","46,9 %","9 %yks.","9 %yks.",38.1,"32 €","32 €","32 €","32 €","371,14 €","1315,86 €","371,14 €","1315,86 €","8,05 €","8057,05 €","0,67 €","1,34 €","1,5 €",68,"0,1 %","8049 €","8105,51 €","56,51 €",0.6,"20 ‰"]
[null,null,null,null,null,null,null,null,null,null,null,null,null,null,null,null,null,null,null,null,null,null,null,null,null,null,null,null,null,null,null,null,null,null,null,null,null,null,null,null,null,null,null,null,null,null,null,null,null,null,null,null,null,null,null,null,"80 %","4 %","4 %","20 %","20 %",19.8,"1,25 €","23,75 €","29,75 €","13,1 %","13,1 %","18,3 %","65,4 %","60 %","60 %","47 %yks.","47 %yks.",31.6,"25 €","25 €","25 €","25 €","712,53 €","1744,47 €","723,17 €","1733,83 €","86,96 €","3867,96 €","7,25 €","21,74 €","35,98 €",151,"2,3 %","3781 €","4535,36 €","754,36 €",1.7,"67,2 ‰"]
[null,null,null,null,null,null,null,null,null,null,null,null,null,null,null,null,null,null,null,null,null,null,null,null,null,null,null,null,null,null,null,null,null,null,null,null,null,null,null,null,null,null,null,null,null,null,null,null,null,null,null,null,null,null,null,null,"71,4 %","28,6 %","28,6 %","68,3 %","68,3 %",44.7,"17,64 €","45,36 €","106,47 €","21,7 %","21,7 %","30,9 %","101,1 %","44,4 %","44,4 %","-18 %yks.","-18 %yks.",88.7,"63 €","63 €","63 €","63 €","977,2 €","2512,8 €","1119,32 €","2370,68 €","174,46 €","9866,46 €","14,54 €","58,15 €","43,02 €",90,"1,8 %","9692 €","10786,98 €","1094,98 €",7.1,"113 ‰"]
[null,null,null,null,null,null,null,null,null,null,null,null,null,null,null,null,null,null,null,null,null,null,null,null,null,null,null,null,null,null,null,null,null,null,null,null,null,null,null,null,null,null,null,null,null,null,null,null,null,null,null,null,null,null,null,null,"57,5 %","5 %","5 %","95 %","95 %",23.2,"2,4 €","37,6 €","77,6 €","82,4 %","82,4 %","21 %","192,9 %","60 %","60 %","-28 %yks.","-28 %yks.",69,"40 €","40 €","40 €","40 €","307,8 €","1312,2 €","307,8 €","1312,2 €","76,48 €","2543,48 €","6,37 €","25,49 €","34,36 €",164,"3,1 %","2467 €","2962,93 €","495,93 €",3.4,"85 ‰"]
[null,null,null,null,null,null,null,null,null,null,null,null,null,null,null,null,null,null,null,null,null,null,null,null,null,null,null,null,null,null,null,null,null,null,null,null,null,null,null,null,null,null,null,null,null,null,null,null,null,null,null,null,null,null,null,null,"16,7 %","51,4 %","51,4 %","58,3 %","58,3 %",12.2,"37,44 €","34,56 €","114,48 €","-23,7 %","-23,7 %","79,8 %","194,2 %","29,2 %","29,2 %","-57 %yks.","-57 %yks.",423.5,"72 €","72 €","72 €","72 €","391,8 €","2220,2 €","557,04 €","2054,96 €","77,83 €","1769,83 €","6,49 €","71,35 €","32,84 €",154,"4,6 %","1692 €","1769,83 €","77,83 €",12.2,"169 ‰"]
[null,null,null,null,null,null,null,null,null,null,null,null,null,null,null,null,null,null,null,null,null,null,null,null,null,null,null,null,null,null,null,null,null,null,null,null,null,null,null,null,null,null,null,null,null,null,null,null,null,null,null,null,null,null,null,null,"45,6 %","8,9 %","8,9 %","35,4 %","35,4 %",36.299999999999997,"7,11 €","71,89 €","107,44 €","23,8 %","23,8 %","18,1 %","38,7 %","79,7 %","79,7 %","23 %yks.","23 %yks.",171.7,"79 €","79 €","79 €","79 €","619,16 €","2072,84 €","736,76 €","1955,24 €","30,19 €","659,19 €","2,52 €","22,64 €","15,72 €",190,"4,8 %","629 €","659,19 €","30,19 €",9.1999999999999993,"115,9 ‰"]
[null,null,null,null,null,null,null,null,null,null,null,null,null,null,null,null,null,null,null,null,null,null,null,null,null,null,null,null,null,null,null,null,null,null,null,null,null,null,null,null,null,null,null,null,null,null,null,null,null,null,null,null,null,null,null,null,"22,8 %","25,7 %","25,7 %","17,6 %","17,6 %",31.3,"35,36 €","100,64 €","160,48 €","-12,7 %","-12,7 %","57,1 %","26,3 %","55,1 %","55,1 %","-57 %yks.","-57 %yks.",591.29999999999995,"136 €","136 €","136 €","136 €","306,15 €","1734,85 €","306,15 €","1734,85 €","229,66 €","9798,66 €","19,14 €","191,38 €","10,7 €",17,"2,4 %","9569 €","10033,82 €","464,82 €",24.1,"177 ‰"]
[null,null,null,null,null,null,null,null,null,null,null,null,null,null,null,null,null,null,null,null,null,null,null,null,null,null,null,null,null,null,null,null,null,null,null,null,null,null,null,null,null,null,null,null,null,null,null,null,null,null,null,null,null,null,null,null,"5,3 %","58 %","58 %","54 %","54 %",7.5,"87 €","63 €","231 €","-35,3 %","-35,3 %","61,8 %","191,1 %","66 %","66 %","-1 %yks.","-1 %yks.",3000,"150 €","150 €","150 €","150 €","582 €","2328 €","657,99 €","2252,01 €","344,09 €","9399,09 €","28,67 €","258,07 €","194,2 €",206,"3,8 %","9055 €","13148,07 €","4093,07 €",18.600000000000001,"124 ‰"]